Workbook

Sheet Topics
A1: % Change
A2: Web Query
A3: Mean
A4: Standard Deviation
A5: Median
A6: Mode
A7: RANK
A8: FREQUENCY table: 2 COUNTIF, COUNTIFS, SUMPRODUCT, FREQUENCY
A9: Relative Frequency
A10: LARGE
A11: SMALL
A12: AVEARGEIF for 3 columns

Sheet % Change
A1: Stocks | B1: Symbol | C1: Price on 1/9/2007 | D1: # stock bought | E1: Value on 1/9/2007 | F1: ="Price on "&TEXT(TODAY(),"m/d/y") -> Price on 4/29/10 | G1: ="Value on "&TEXT(TODAY(),"m/d/y") -> Value on 4/29/10 | H1: Amount of Change | I1: % Change | J1: % Change = End/Beg-1
A2: Google | B2: GOOG | C2: 485.5 | D2: 1000 | E2: =D2*C2 -> 485500 | G2: =$D2*F2 -> 0
A3: Microsoft | B3: MSFT | C3: 29.96 | D3: 1000 | E3: =D3*C3 -> 29960 | G3: =$D3*F3 -> 0
A4: Goldman Sachs Group | B4: GS | C4: 204.08 | D4: 1000 | E4: 204080 | G4: 0
A5: Citi Group | B5: C | C5: 54.57 | D5: 1000 | E5: 54570 | G5: 0
A6: Bank og Ameraica | B6: BAC | C6: 53.5 | D6: 1000 | E6: 53500 | G6: 0
A7: WholeFoods | B7: WFMI | C7: 46.25 | D7: 1000 | E7: 46250 | G7: 0

Sheet % Change (an) (hidden)
A1: Stocks | B1: Symbol | C1: Price on 1/9/2007 | D1: # stock bought | E1: Value on 1/9/2007 | F1: ="Price on "&TEXT(TODAY(),"m/d/y") -> Price on 4/29/10 | G1: ="Value on "&TEXT(TODAY(),"m/d/y") -> Value on 4/29/10 | H1: Amount of Change | I1: % Change | J1: % Change = End/Beg-1
A2: Google | B2: GOOG | C2: 485.5 | D2: 1000 | E2: =D2*C2 -> 485500 | F2: =D13 -> 529.19 | G2: =$D2*F2 -> 529190 | H2: =G2-E2 -> 43690 | I2: =H2/E2 -> 0.08998970134 | J2: =F2/C2-1 -> 0.08998970134
A3: Microsoft | B3: MSFT | C3: 29.96 | D3: 1000 | E3: =D3*C3 -> 29960 | F3: =D14 -> 30.91 | G3: =$D3*F3 -> 30910 | H3: 950 | I3: =H3/E3 -> 0.03170894526 | J3: =F3/C3-1 -> 0.03170894526
A4: Goldman Sachs Group | B4: GS | C4: 204.08 | D4: 1000 | E4: =D4*C4 -> 204080 | F4: 157.01 | G4: 157010 | H4: -47070 | I4: -0.2306448452 | J4: -0.2306448452
A5: Citi Group | B5: C | C5: 54.57 | D5: 1000 | E5: 54570 | F5: 4.45 | G5: 4450 | H5: -50120 | I5: -0.9184533627 | J5: -0.9184533627
A6: Bank of America | B6: BAC | C6: 53.5 | D6: 1000 | E6: 53500 | F6: 17.78 | G6: 17780 | H6: -35720 | I6: -0.6676635514 | J6: -0.6676635514
A7: Wholefoods | B7: WFMI | C7: 46.25 | D7: 1000 | E7: 46250 | F7: 38.29 | G7: 38290 | H7: -7960 | I7: -0.1721081081 | J7: -0.1721081081
A10: Stock Quotes Provided by MSN Money
A11: Click here to visit MSN Money
D12: Last | E12: Previous Close | F12: High | G12: Low | H12: Volume | I12: Change | J12: % Change | K12: 52 Wk High | L12: 52 Wk Low | M12: Market Cap | N12: EPS | O12: P/E Ratio | P12: # Shares Out
A13: Google Inc | B13: Chart | C13: News | D13: 529.19 | E13: 529.06 | F13: 534.83 | G13: 521.03 | H13: 3398849 | I13: 0.13 | J13: 0.0002 | K13: 629.51 | L13: 381.54 | M13: 168271466543 | N13: 22.07 | O13: 24.9 | P13: 317979300
A14: Microsoft Corp | B14: Chart | C14: News | D14: 30.91 | E14: 30.85 | F14: 31 | G14: 30.62 | H14: 64448632 | I14: 0.07 | J14: 0.0021 | K14: 31.58 | L14: 19.01 | M14: 271094948172 | N14: 1.82 | O14: 16.9 | P14: 8770461000
A15: Goldman Sachs Group Inc | B15: Chart | C15: News | D15: 157.01 | E15: 153.04 | F15: 157.65 | G15: 154.69 | H15: 21179762 | I15: 3.97 | J15: 0.0259 | K15: 193.6 | L15: 119.8 | M15: 82626682320 | N15: 21.77 | O15: 7.4 | P15: 526251100
A16: Citigroup Inc | B16: Chart | C16: News | D16: 4.45 | E16: 4.34 | F16: 4.56 | G16: 4.4 | H16: 1102154631 | I16: 0.11 | J16: 0.0253 | K16: 5.43 | L16: 2.55 | M16: 127087099553 | N16: -0.28 | O16: 0 | P16: 28558900000
A17: Bank of America Corp | B17: Chart | C17: News | D17: 17.78 | E17: 17.47 | F17: 17.96 | G17: 17.51 | H17: 194910785 | I17: 0.31 | J17: 0.0177 | K17: 19.86 | L17: 8 | M17: 178368966888 | N17: -0.24 | O17: 0 | P17: 10032000000
A18: Whole Foods Market Inc | B18: Chart | C18: News | D18: 38.29 | E18: 37.73 | F18: 38.62 | G18: 37.91 | H18: 2677783 | I18: 0.56 | J18: 0.0148 | K18: 40.37 | L18: 17.16 | M18: 6522962028 | N18: 0.97 | O18: 40.4 | P18: 170356800
A20: Symbol Lookup | C20: MSN Money Home | G20: Microsoft Office Tools on the Web
A21: Find stocks, mutual funds, options, indices, and currencies. | C21: Discover MSN Money's tools, columns, and more! | G21: Get the latest from Microsoft Office
A23: Terms of Use. © 2010 Microsoft Corporation and/or its suppliers. All rights reserved.
A24: Data providers
A25: Canadian investment fund pricing (c) 2010 CANNEX Financial Exchanges Limited.
A26: Copyright © 2010 Thomson Reuters. Click for Restrictions.
A27: Analyst Recommendations data provided by Zacks.com.
A28: Fund data provided by Morningstar, Inc. © 2010. All rights reserved.
A29: Quotes supplied by Interactive Data Real-Time Services.
A30: StockScouter data provided by Gradient Analytics, Inc.

Sheet Mean & SD
F1: Averages are estimates for a "typical value", or a measure of central tendency.
F2: Why do we have averages?
B3: Times (Minutes) To Router Each Product | F3: Mean gives 1 number that will represent all the numbers (data points)
F4: Mean = is one type of average = add/count = AVERAGE function
B5: Shift 1 | C5: Shift 2 | D5: Shift 3 | F5: Standard Deviation tells you how reliable your Mean is. Visually: It tells you how clustered your data points are around the mean.
B6: 1.09 | C6: 1.64 | D6: 2 | F6: The smaller the Standard Deviation, the more reliable the mean is; the "more good" your mean is; the more clustered the data points are around the mean.
B7: 1.25 | C7: 2.3 | D7: 1.46
B8: 1.32 | C8: 1.4 | D8: 1.75
B9: 1.16 | C9: 1 | D9: 1.54
B10: 1.4 | C10: 1.73 | D10: 1.68
B11: 1.4 | C11: 0.91 | D11: 1.04
B12: 1.2 | C12: 0.45 | D12: 0.45
B13: 0.71 | C13: 0.62 | D13: 1.98
B14: 1.54 | C14: 0.73 | D14: 2.3
B15: 1.64 | C15: 1.2 | D15: 1.3
B16: 1.37 | C16: 1.12 | D16: 1.74
B17: 1.3 | C17: 1.25 | D17: 1.27
B18: 1.2 | C18: 1.73 | D18: 1.66
B19: 1.15 | C19: 1.07 | D19: 2.15
B20: 1.15 | C20: 1.63 | D20: 0.56
B21: 1.27 | C21: 1.08 | D21: 0.97
B22: 1.22 | C22: 1.5 | D22: 1.78
A23: Mean
A24: STDEV
B28: =$B$5&" X" -> Shift 1 X | C28: =$B$5&" Y" -> Shift 1 Y | D28: =$C$5&" X" -> Shift 2 X | E28: =$C$5&" Y" -> Shift 2 Y | F28: =$B$5&" mean" -> Shift 1 mean | G28: =$B$5&" mean Y" -> Shift 1 mean Y | H28: =$C$5&" mean" -> Shift 2 mean | I28: =$C$5&" mean Y" -> Shift 2 mean Y
B29: =B6 -> 1.09 | C29: 1 | D29: =C6 -> 1.64 | E29: 2 | F29: =AVERAGE(B6:B22) -> 1.257058824 | G29: 1.5 | H29: =AVERAGE(C6:C22) -> 1.256470588 | I29: 2.5
B30: =B7 -> 1.25 | C30: 1 | D30: =C7 -> 2.3 | E30: 2
B31: 1.32 | C31: 1 | D31: 1.4 | E31: 2
B32: 1.16 | C32: 1 | D32: 1 | E32: 2
B33: 1.4 | C33: 1 | D33: 1.73 | E33: 2
B34: 1.4 | C34: 1 | D34: 0.91 | E34: 2
B35: 1.2 | C35: 1 | D35: 0.45 | E35: 2
B36: 0.71 | C36: 1 | D36: 0.62 | E36: 2
B37: 1.54 | C37: 1 | D37: 0.73 | E37: 2
B38: 1.64 | C38: 1 | D38: 1.2 | E38: 2
B39: 1.37 | C39: 1 | D39: 1.12 | E39: 2
B40: 1.3 | C40: 1 | D40: 1.25 | E40: 2
B41: 1.2 | C41: 1 | D41: 1.73 | E41: 2
B42: 1.15 | C42: 1 | D42: 1.07 | E42: 2
B43: 1.15 | C43: 1 | D43: 1.63 | E43: 2
B44: 1.27 | C44: 1 | D44: 1.08 | E44: 2
B45: 1.22 | C45: 1 | D45: 1.5 | E45: 2

Sheet Mean & SD (an) (hidden)
F1: Averages are estimates for a "typical value", or a measure of central tendency.
F2: Why do we have averages?
B3: Times (Minutes) To Router Each Product | F3: Mean gives 1 number that will represent all the numbers (data points)
F4: Mean = is one type of average = add/count = AVERAGE function
B5: Shift 1 | C5: Shift 2 | D5: Shift 3 | F5: Standard Deviation tells you how reliable your Mean is. Visually: It tells you how clustered your data points are around the mean.
B6: 1.09 | C6: 1.64 | D6: 2 | F6: The smaller the Standard Deviation, the more reliable the mean is; the "more good" your mean is; the more clustered the data points are around the mean.
B7: 1.25 | C7: 2.3 | D7: 1.46
B8: 1.32 | C8: 1.4 | D8: 1.75
B9: 1.16 | C9: 1 | D9: 1.54
B10: 1.4 | C10: 1.73 | D10: 1.68
B11: 1.4 | C11: 0.91 | D11: 1.04
B12: 1.2 | C12: 0.45 | D12: 0.45
B13: 0.71 | C13: 0.62 | D13: 1.98
B14: 1.54 | C14: 0.73 | D14: 2.3
B15: 1.64 | C15: 1.2 | D15: 1.3
B16: 1.37 | C16: 1.12 | D16: 1.74
B17: 1.3 | C17: 1.25 | D17: 1.27
B18: 1.2 | C18: 1.73 | D18: 1.66
B19: 1.15 | C19: 1.07 | D19: 2.15
B20: 1.15 | C20: 1.63 | D20: 0.56
B21: 1.27 | C21: 1.08 | D21: 0.97
B22: 1.22 | C22: 1.5 | D22: 1.78
A23: Mean | B23: =AVERAGE(B6:B22) -> 1.257058824 | C23: 1.256470588 | D23: 1.507647059
A24: STDEV | B24: =STDEV(B6:B22) -> 0.2021374751 | C24: 0.4683874088 | D24: 0.5227993091
B28: =$B$5&" X" -> Shift 1 X | C28: =$B$5&" Y" -> Shift 1 Y | D28: =$C$5&" X" -> Shift 2 X | E28: =$C$5&" Y" -> Shift 2 Y | F28: =$B$5&" mean" -> Shift 1 mean | G28: =$B$5&" mean Y" -> Shift 1 mean Y | H28: =$C$5&" mean" -> Shift 2 mean | I28: =$C$5&" mean Y" -> Shift 2 mean Y
B29: =B6 -> 1.09 | C29: 1 | D29: =C6 -> 1.64 | E29: 2 | F29: =AVERAGE(B6:B22) -> 1.257058824 | G29: 1.5 | H29: =AVERAGE(C6:C22) -> 1.256470588 | I29: 2.5
B30: =B7 -> 1.25 | C30: 1 | D30: =C7 -> 2.3 | E30: 2
B31: 1.32 | C31: 1 | D31: 1.4 | E31: 2
B32: 1.16 | C32: 1 | D32: 1 | E32: 2
B33: 1.4 | C33: 1 | D33: 1.73 | E33: 2
B34: 1.4 | C34: 1 | D34: 0.91 | E34: 2
B35: 1.2 | C35: 1 | D35: 0.45 | E35: 2
B36: 0.71 | C36: 1 | D36: 0.62 | E36: 2
B37: 1.54 | C37: 1 | D37: 0.73 | E37: 2
B38: 1.64 | C38: 1 | D38: 1.2 | E38: 2
B39: 1.37 | C39: 1 | D39: 1.12 | E39: 2
B40: 1.3 | C40: 1 | D40: 1.25 | E40: 2
B41: 1.2 | C41: 1 | D41: 1.73 | E41: 2
B42: 1.15 | C42: 1 | D42: 1.07 | E42: 2
B43: 1.15 | C43: 1 | D43: 1.63 | E43: 2
B44: 1.27 | C44: 1 | D44: 1.08 | E44: 2
B45: 1.22 | C45: 1 | D45: 1.5 | E45: 2

Sheet Median
A1: House Prices | C1: Mean = add/count = AVERAGE function | Q1: Rand with a few extreemes
A2: 159058 | C2: Problem with mean is: a few really large values would pull the mean up. | Q2: =IF(MOD(ROW(),10),125000+INT(RAND()*(290000-125000)),800000+INT(RAND()*500000)) -> 216572
A3: 140245 | C3: Median is a type of average that avoids bias when there are a few really big or small numbers in data set
A4: 266064 | C4: Median is the one in the middle after sorting the list
A5: 127204
A6: 275754 | C6: Mean
A7: 238830 | C7: Median
A8: 232234
A9: 250974 | C9: This means that if the real estate agent wants the neighborhood to look richer than it is, he would use the Mean and if he want to take a more reasonable approach, he would use Median
A10: 1043651
A11: 272952 | D11: Sorted
A12: 150892 | C12: =ROWS(C$12:C12) -> 1 | D12: =LARGE($A$2:$A$30,C12) -> 1266258
A13: 284008 | C13: =ROWS(C$12:C13) -> 2 | D13: =LARGE($A$2:$A$30,C13) -> 1043651
A14: 192061 | C14: =ROWS(C$12:C14) -> 3 | D14: 843136
A15: 194563 | C15: =ROWS(C$12:C15) -> 4 | D15: 284008
A16: 270528 | C16: =ROWS(C$12:C16) -> 5 | D16: 275754
A17: 180347 | C17: =ROWS(C$12:C17) -> 6 | D17: 272952
A18: 139844 | C18: =ROWS(C$12:C18) -> 7 | D18: 270528
A19: 196515 | C19: =ROWS(C$12:C19) -> 8 | D19: 266064
A20: 843136 | C20: =ROWS(C$12:C20) -> 9 | D20: 260104
A21: 126357 | C21: =ROWS(C$12:C21) -> 10 | D21: 255392
A22: 139393 | C22: =ROWS(C$12:C22) -> 11 | D22: 250974
A23: 255392 | C23: =ROWS(C$12:C23) -> 12 | D23: 246638
A24: 197379 | C24: =ROWS(C$12:C24) -> 13 | D24: 238830
A25: 152187 | C25: =ROWS(C$12:C25) -> 14 | D25: 232234
A26: 246638 | C26: =ROWS(C$12:C26) -> 15 | D26: 197379
A27: 260104 | C27: =ROWS(C$12:C27) -> 16 | D27: 196515
A28: 164684 | C28: =ROWS(C$12:C28) -> 17 | D28: 194563
A29: 150359 | C29: =ROWS(C$12:C29) -> 18 | D29: 192061
A30: 1266258 | C30: =ROWS(C$12:C30) -> 19 | D30: 180347
C31: =ROWS(C$12:C31) -> 20 | D31: 164684
C32: =ROWS(C$12:C32) -> 21 | D32: 159058
C33: =ROWS(C$12:C33) -> 22 | D33: 152187
C34: =ROWS(C$12:C34) -> 23 | D34: 150892
C35: =ROWS(C$12:C35) -> 24 | D35: 150359
C36: =ROWS(C$12:C36) -> 25 | D36: 140245
C37: =ROWS(C$12:C37) -> 26 | D37: 139844
C38: =ROWS(C$12:C38) -> 27 | D38: 139393
C39: =ROWS(C$12:C39) -> 28 | D39: 127204
C40: =ROWS(C$12:C40) -> 29 | D40: 126357

Sheet Median (an) (hidden)
A1: House Prices | C1: Mean = add/count = AVERAGE function | Q1: Rand with a few extreemes
A2: 159058 | C2: Problem with mean is: a few really large values would pull the mean up. | Q2: =IF(MOD(ROW(),10),125000+INT(RAND()*(290000-125000)),800000+INT(RAND()*500000)) -> 240859
A3: 140245 | C3: Median is a type of average that avoids bias when there are a few really big or small numbers in data set
A4: 266064 | C4: Median is the one in the middle after sorting the list
A5: 127204
A6: 275754 | C6: Mean
A7: 238830 | C7: Median
A8: 232234
A9: 250974 | C9: This means that if the real estate agent wants the neighborhood to look richer than it is, he would use the Mean and if he want to take a more reasonable approach, he would use Median
A10: 1043651
A11: 272952 | D11: Sorted
A12: 150892 | C12: =ROWS(C$12:C12) -> 1 | D12: =LARGE($A$2:$A$30,C12) -> 1266258
A13: 284008 | C13: =ROWS(C$12:C13) -> 2 | D13: =LARGE($A$2:$A$30,C13) -> 1043651
A14: 192061 | C14: =ROWS(C$12:C14) -> 3 | D14: 843136
A15: 194563 | C15: =ROWS(C$12:C15) -> 4 | D15: 284008
A16: 270528 | C16: =ROWS(C$12:C16) -> 5 | D16: 275754
A17: 180347 | C17: =ROWS(C$12:C17) -> 6 | D17: 272952
A18: 139844 | C18: =ROWS(C$12:C18) -> 7 | D18: 270528
A19: 196515 | C19: =ROWS(C$12:C19) -> 8 | D19: 266064
A20: 843136 | C20: =ROWS(C$12:C20) -> 9 | D20: 260104
A21: 126357 | C21: =ROWS(C$12:C21) -> 10 | D21: 255392
A22: 139393 | C22: =ROWS(C$12:C22) -> 11 | D22: 250974
A23: 255392 | C23: =ROWS(C$12:C23) -> 12 | D23: 246638
A24: 197379 | C24: =ROWS(C$12:C24) -> 13 | D24: 238830
A25: 152187 | C25: =ROWS(C$12:C25) -> 14 | D25: 232234
A26: 246638 | C26: =ROWS(C$12:C26) -> 15 | D26: 197379
A27: 260104 | C27: =ROWS(C$12:C27) -> 16 | D27: 196515
A28: 164684 | C28: =ROWS(C$12:C28) -> 17 | D28: 194563
A29: 150359 | C29: =ROWS(C$12:C29) -> 18 | D29: 192061
A30: 1266258 | C30: =ROWS(C$12:C30) -> 19 | D30: 180347
C31: =ROWS(C$12:C31) -> 20 | D31: 164684
C32: =ROWS(C$12:C32) -> 21 | D32: 159058
C33: =ROWS(C$12:C33) -> 22 | D33: 152187
C34: =ROWS(C$12:C34) -> 23 | D34: 150892
C35: =ROWS(C$12:C35) -> 24 | D35: 150359
C36: =ROWS(C$12:C36) -> 25 | D36: 140245
C37: =ROWS(C$12:C37) -> 26 | D37: 139844
C38: =ROWS(C$12:C38) -> 27 | D38: 139393
C39: =ROWS(C$12:C39) -> 28 | D39: 127204
C40: =ROWS(C$12:C40) -> 29 | D40: 126357

Sheet Mode
A1: Mode is a type of average used for nominal data (counting things) | M1: 1 | N1: Great | R1: Formula to generate:
A2: The problem with mean is that if we add/count, we get 10/10 = 1 | M2: 2 | N2: Very Good | R2: =VLOOKUP(INT(RAND()*6+1),$M$1:$N$6,2) -> Great
M3: 3 | N3: Good
M4: 4 | N4: OK
A5: Respondents asked to say whether they liked new soda | C5: Category | D5: Frequency | M5: 5 | N5: Don't Like
A6: Good | C6: Great | M6: 6 | N6: Dislike Greatly
A7: Good | C7: Very Good
A8: Great | C8: Good | F8: < == this is the mode and becomes the "average" response, or typical response, one value that can stand in for all the values
A9: Good | C9: OK
A10: OK | C10: Don't Like
A11: OK | C11: Dislike Greatly
A12: Don't Like
A13: Don't Like
A14: Great
A15: Very Good
A16: Don't Like
A17: OK
A18: Very Good
A19: Very Good
A20: Great
A21: OK
A22: Dislike Greatly
A23: Good
A24: Don't Like
A25: Good
A26: Don't Like
A27: Very Good
A28: Good
A29: Dislike Greatly
A30: Great
A31: Good
A32: Great
A33: Dislike Greatly
A34: OK
A35: Dislike Greatly
A36: OK
A37: Good
A38: Good
A39: Don't Like
A40: Good
A41: Very Good
A42: Don't Like
A43: Very Good
A44: Dislike Greatly
A45: Very Good

Sheet Mode (an) (hidden)
A1: Mode is a type of average used for nominal data (counting things) | M1: 1 | N1: Great | R1: Formula to generate:
A2: The problem with mean is that if we add/count, we get 10/10 = 1 | M2: 2 | N2: Very Good | R2: =VLOOKUP(INT(RAND()*6+1),$M$1:$N$6,2) -> Good
M3: 3 | N3: Good
M4: 4 | N4: OK
A5: Respondents asked to say whether they liked new soda | C5: Category | D5: Frequency | M5: 5 | N5: Don't Like
A6: Good | C6: Great | D6: =COUNTIF($A$6:$A$45,C6) -> 5 | M6: 6 | N6: Dislike Greatly
A7: Good | C7: Very Good | D7: =COUNTIF($A$6:$A$45,C7) -> 7
A8: Great | C8: Good | D8: 10 | F8: < == this is the mode and becomes the "average" response, or typical response, one value that can stand in for all the values
A9: Good | C9: OK | D9: 6
A10: OK | C10: Don't Like | D10: 7
A11: OK | C11: Dislike Greatly | D11: 5
A12: Don't Like
A13: Don't Like
A14: Great
A15: Very Good
A16: Don't Like
A17: OK
A18: Very Good
A19: Very Good
A20: Great
A21: OK
A22: Dislike Greatly
A23: Good
A24: Don't Like
A25: Good
A26: Don't Like
A27: Very Good
A28: Good
A29: Dislike Greatly
A30: Great
A31: Good
A32: Great
A33: Dislike Greatly
A34: OK
A35: Dislike Greatly
A36: OK
A37: Good
A38: Good
A39: Don't Like
A40: Good
A41: Very Good
A42: Don't Like
A43: Very Good
A44: Dislike Greatly
A45: Very Good

Sheet Frequency
A1: Test Scores Last Two Years | C1: lower (included) | D1: upper (not included) | E1: Score Bin | F1: Frequency | G1: Relative Frequency | K1: Frequency | L1: Frequency | Q1: Rand formula:
A2: 34 | C2: 0 | D2: =C2+10 -> 10 | K2: =COUNTIF($A$2:$A$304,"<"&D2)-COUNTIF($A$2:$A$304,"<"&C2) -> 14 | L2: =SUMPRODUCT(--($A$2:$A$304>=C2),--($A$2:$A$304<D2)) -> 14 | Q2: =IF(MOD(ROW(),7),INT(RAND()*100+1),80+INT(RAND()*20+1)) -> 55
A3: 91 | C3: =D2 -> 10 | D3: =C3+10 -> 20 | K3: 28 | L3: 28
A4: 72 | C4: =D3 -> 20 | D4: =C4+10 -> 30 | K4: 28 | L4: 28
A5: 28 | C5: 30 | D5: 40 | K5: 24 | L5: 24
A6: 90 | C6: 40 | D6: 50 | K6: 18 | L6: 18
A7: 98 | C7: 50 | D7: 60 | K7: 27 | L7: 27
A8: 29 | C8: 60 | D8: 70 | K8: 24 | L8: 24
A9: 89 | C9: =D8 -> 70 | D9: =C9+10 -> 80 | K9: 30 | L9: 30
A10: 53 | C10: 80 | D10: 90 | K10: 42 | L10: 42
A11: 90 | C11: 90 | D11: 100 | K11: 60 | L11: 60
A12: 40 | E12: Total
A13: 15
A14: 92
A15: 13
A16: 39
A17: 90
A18: 18
A19: 50
A20: 13
A21: 87
A22: 88
A23: 12
A24: 85
A25: 20
A26: 46
A27: 17
A28: 88
A29: 74
A30: 27
A31: 4
A32: 62
A33: 95
A34: 63
A35: 94
A36: 62
A37: 41
A38: 91
A39: 51
A40: 60
A41: 4
A42: 85
A43: 100
A44: 60
A45: 8
A46: 11
A47: 73
A48: 26
A49: 99
A50: 52
A51: 28
A52: 3
A53: 41
A54: 76
A55: 53
A56: 92
A57: 7
A58: 98
A59: 25
A60: 57
A61: 9
A62: 88
A63: 96
A64: 55
A65: 22
A66: 86
A67: 65
A68: 91
A69: 35
A70: 91
A71: 96
A72: 58
A73: 28
A74: 24
A75: 51
A76: 28
A77: 92
A78: 48
A79: 31
A80: 10
A81: 17
A82: 73
A83: 6
A84: 98
A85: 76
A86: 10
A87: 30
A88: 30
A89: 77
A90: 82
A91: 94
A92: 92
A93: 58
A94: 26
A95: 80
A96: 73
A97: 98
A98: 96
A99: 52
A100: 32
A101: 81
A102: 32
A103: 20
A104: 14
A105: 81
A106: 64
A107: 100
A108: 90
A109: 22
A110: 13
A111: 62
A112: 97
A113: 23
A114: 33
A115: 16
A116: 26
A117: 63
A118: 12
A119: 81
A120: 100
A121: 31
A122: 99
A123: 99
A124: 32
A125: 20
A126: 83
A127: 22
A128: 82
A129: 67
A130: 43
A131: 85
A132: 86
A133: 82
A134: 74
A135: 100
A136: 79
A137: 63
A138: 41
A139: 72
A140: 87
A141: 92
A142: 71
A143: 68
A144: 68
A145: 88
A146: 47
A147: 87
A148: 25
A149: 31
A150: 11
A151: 10
A152: 15
A153: 92
A154: 88
A155: 33
A156: 71
A157: 70
A158: 58
A159: 99
A160: 80
A161: 97
A162: 56
A163: 16
A164: 94
A165: 100
A166: 62
A167: 1
A168: 84
A169: 94
A170: 90
A171: 36
A172: 87
A173: 68
A174: 25
A175: 93
A176: 22
A177: 19
A178: 9
A179: 63
A180: 42
A181: 59
A182: 94
A183: 63
A184: 12
A185: 69
A186: 71
A187: 13
A188: 3
A189: 100
A190: 28
A191: 52
A192: 15
A193: 64
A194: 70
A195: 41
A196: 87
A197: 48
A198: 22
A199: 97
A200: 87
... 104 more rows

Sheet Frequency (an) (hidden)
A1: Test Scores Last Two Years | C1: lower (included) | D1: upper (not included) | E1: Score Bin | F1: Frequency | G1: Relative Frequency | K1: Frequency | L1: Frequency | Q1: Rand formula:
A2: 34 | C2: 0 | D2: =C2+10 -> 10 | E2: =C2&" up to "&D2 -> 0 up to 10 | F2: =COUNTIFS($A$2:$A$304,">="&C2,$A$2:$A$304,"<"&D2) -> 14 | G2: =F2/F$12 -> 0.04745762712 | K2: =COUNTIF($A$2:$A$304,"<"&D2)-COUNTIF($A$2:$A$304,"<"&C2) -> 14 | L2: =SUMPRODUCT(--($A$2:$A$304>=C2),--($A$2:$A$304<D2)) -> 14 | Q2: =IF(MOD(ROW(),7),INT(RAND()*100+1),80+INT(RAND()*20+1)) -> 39
A3: 91 | C3: =D2 -> 10 | D3: =C3+10 -> 20 | E3: 10 up to 20 | F3: 28 | G3: =F3/F$12 -> 0.09491525424 | K3: 28 | L3: 28
A4: 72 | C4: =D3 -> 20 | D4: =C4+10 -> 30 | E4: 20 up to 30 | F4: 28 | G4: 0.09491525424 | K4: 28 | L4: 28
A5: 28 | C5: 30 | D5: 40 | E5: 30 up to 40 | F5: 24 | G5: 0.0813559322 | K5: 24 | L5: 24
A6: 90 | C6: 40 | D6: 50 | E6: 40 up to 50 | F6: 18 | G6: 0.06101694915 | K6: 18 | L6: 18
A7: 98 | C7: 50 | D7: 60 | E7: 50 up to 60 | F7: 27 | G7: 0.09152542373 | K7: 27 | L7: 27
A8: 29 | C8: 60 | D8: 70 | E8: 60 up to 70 | F8: 24 | G8: 0.0813559322 | K8: 24 | L8: 24
A9: 89 | C9: =D8 -> 70 | D9: =C9+10 -> 80 | E9: 70 up to 80 | F9: 30 | G9: 0.1016949153 | K9: 30 | L9: 30
A10: 53 | C10: 80 | D10: 90 | E10: 80 up to 90 | F10: 42 | G10: 0.1423728814 | K10: 42 | L10: 42
A11: 90 | C11: 90 | D11: 100 | E11: 90 up to 100 | F11: 60 | G11: 0.2033898305 | K11: 60 | L11: 60
A12: 40 | E12: Total | F12: =SUM(F2:F11) -> 295 | G12: =SUM(G2:G11) -> 1
A13: 15
A14: 92
A15: 13
A16: 39
A17: 90
A18: 18
A19: 50
A20: 13
A21: 87
A22: 88
A23: 12
A24: 85
A25: 20
A26: 46
A27: 17
A28: 88
A29: 74
A30: 27
A31: 4
A32: 62
A33: 95
A34: 63
A35: 94
A36: 62
A37: 41
A38: 91
A39: 51
A40: 60
A41: 4
A42: 85
A43: 100
A44: 60
A45: 8
A46: 11
A47: 73
A48: 26
A49: 99
A50: 52
A51: 28
A52: 3
A53: 41
A54: 76
A55: 53
A56: 92
A57: 7
A58: 98
A59: 25
A60: 57
A61: 9
A62: 88
A63: 96
A64: 55
A65: 22
A66: 86
A67: 65
A68: 91
A69: 35
A70: 91
A71: 96
A72: 58
A73: 28
A74: 24
A75: 51
A76: 28
A77: 92
A78: 48
A79: 31
A80: 10
A81: 17
A82: 73
A83: 6
A84: 98
A85: 76
A86: 10
A87: 30
A88: 30
A89: 77
A90: 82
A91: 94
A92: 92
A93: 58
A94: 26
A95: 80
A96: 73
A97: 98
A98: 96
A99: 52
A100: 32
A101: 81
A102: 32
A103: 20
A104: 14
A105: 81
A106: 64
A107: 100
A108: 90
A109: 22
A110: 13
A111: 62
A112: 97
A113: 23
A114: 33
A115: 16
A116: 26
A117: 63
A118: 12
A119: 81
A120: 100
A121: 31
A122: 99
A123: 99
A124: 32
A125: 20
A126: 83
A127: 22
A128: 82
A129: 67
A130: 43
A131: 85
A132: 86
A133: 82
A134: 74
A135: 100
A136: 79
A137: 63
A138: 41
A139: 72
A140: 87
A141: 92
A142: 71
A143: 68
A144: 68
A145: 88
A146: 47
A147: 87
A148: 25
A149: 31
A150: 11
A151: 10
A152: 15
A153: 92
A154: 88
A155: 33
A156: 71
A157: 70
A158: 58
A159: 99
A160: 80
A161: 97
A162: 56
A163: 16
A164: 94
A165: 100
A166: 62
A167: 1
A168: 84
A169: 94
A170: 90
A171: 36
A172: 87
A173: 68
A174: 25
A175: 93
A176: 22
A177: 19
A178: 9
A179: 63
A180: 42
A181: 59
A182: 94
A183: 63
A184: 12
A185: 69
A186: 71
A187: 13
A188: 3
A189: 100
A190: 28
A191: 52
A192: 15
A193: 64
A194: 70
A195: 41
A196: 87
A197: 48
A198: 22
A199: 97
A200: 87
... 104 more rows

Sheet Large Small
A1: Sales Rep | B1: Sales | D1: # | E1: Large | G1: Sales Rep | H1: Time To Make Part | J1: # | K1: Small | Q1: Rand formulas:
A2: Richard | B2: 5937 | D2: 1 | G2: Denise | H2: 4.126 | J2: 1 | Q2: =INDEX(Names,INT(RAND()*COUNTA(Names)+1)) -> Sarah
A3: Manavbir | B3: 19551 | D3: 2 | G3: Manavbir | H3: 4.52 | J3: 2 | Q3: =IF(MOD(ROW(),100),RANDBETWEEN(5000,50000),RANDBETWEEN(60000,100000)) -> 42238
A4: Janita | B4: 22010 | D4: 3 | G4: Nelia | H4: 3.742 | J4: 3 | Q4: =IF(MOD(ROW(),375),RANDBETWEEN(2000,5000)/1000,RANDBETWEEN(1000,1750)/1000) -> 2.042
A5: Mitchell | B5: 26146 | D5: 4 | G5: Nelia | H5: 3.92 | J5: 4
A6: Christina | B6: 16621 | D6: 5 | G6: Denise | H6: 4.426 | J6: 5
A7: Nakyun | B7: 37653 | G7: Denise | H7: 2.12
A8: Mitchell | B8: 16018 | D8: # | E8: Large | G8: Carol | H8: 2.023 | J8: # | K8: Large
A9: Daniel | B9: 31850 | G9: Kaur | H9: 2.731
A10: Mi | B10: 29517 | G10: Shari | H10: 2.434
A11: Richard | B11: 47477 | G11: Mitchell | H11: 4.196
A12: Kaur | B12: 9008 | G12: Janita | H12: 4.458
A13: Ewelina | B13: 13547 | G13: Michael | H13: 4.088
A14: Ewelina | B14: 49100 | G14: Debra | H14: 4.836
A15: Mitchell | B15: 26324 | G15: Yla-Katrina | H15: 3.182
A16: Nelia | B16: 38612 | G16: Ewelina | H16: 2.828
A17: Craig | B17: 40900 | G17: Ewelina | H17: 4.926
A18: Carol | B18: 26761 | G18: Janita | H18: 3.414
A19: Nelia | B19: 21598 | G19: Sarah | H19: 2.651
A20: Denise | B20: 6625 | G20: Carol | H20: 3.413
A21: Richard | B21: 37758 | G21: Shari | H21: 3.915
A22: Nelia | B22: 45437 | G22: Michael | H22: 2.566
A23: Nelia | B23: 18107 | G23: Debra | H23: 4.688
A24: Richard | B24: 39241 | G24: Craig | H24: 2.138
A25: Sarah | B25: 7544 | G25: Denise | H25: 4.648
A26: Nakyun | B26: 38052 | G26: Shari | H26: 3.484
A27: Janita | B27: 27275 | G27: Carol | H27: 2.954
A28: Kaur | B28: 32573 | G28: Denise | H28: 4.685
A29: Shari | B29: 32327 | G29: Carol | H29: 4.274
A30: Shari | B30: 15245 | G30: Carol | H30: 3.112
A31: Yla-Katrina | B31: 38620 | G31: Nelia | H31: 3.159
A32: Denise | B32: 26444 | G32: Carol | H32: 4.92
A33: Richard | B33: 40199 | G33: Michael | H33: 3.452
A34: Carol | B34: 36011 | G34: Yla-Katrina | H34: 4.286
A35: Michelle | B35: 45422 | G35: Nelia | H35: 3.505
A36: Nakyun | B36: 40283 | G36: Daniel | H36: 2.712
A37: Ewelina | B37: 37862 | G37: Craig | H37: 2.778
A38: Janita | B38: 47855 | G38: Michael | H38: 3.911
A39: Nelia | B39: 29383 | G39: Michelle | H39: 3.672
A40: Mi | B40: 36334 | G40: Ewelina | H40: 4.742
A41: Nakyun | B41: 40325 | G41: Kaur | H41: 4.516
A42: Manavbir | B42: 7257 | G42: Mansa | H42: 4.241
A43: Janita | B43: 6429 | G43: Sarah | H43: 4.838
A44: Manavbir | B44: 32666 | G44: Mansa | H44: 2.616
A45: Shari | B45: 14516 | G45: Daniel | H45: 2.803
A46: Manavbir | B46: 17731 | G46: Sykes | H46: 3.468
A47: Mi | B47: 40705 | G47: Nelia | H47: 3.804
A48: Craig | B48: 7940 | G48: Manavbir | H48: 2.142
A49: Nelia | B49: 16064 | G49: Carol | H49: 2.962
A50: Shari | B50: 34144 | G50: Manavbir | H50: 4.907
A51: Michael | B51: 32784 | G51: Nelia | H51: 2.624
A52: Elain | B52: 9958 | G52: Michelle | H52: 4.723
A53: Nelia | B53: 48074 | G53: Michael | H53: 3.353
A54: Gianna | B54: 36132 | G54: Michelle | H54: 4.337
A55: Denise | B55: 11251 | G55: Craig | H55: 3.513
A56: Denise | B56: 47943 | G56: Carol | H56: 2.783
A57: Jason | B57: 44129 | G57: Michael | H57: 2.132
A58: Craig | B58: 7793 | G58: Mi | H58: 3.674
A59: Richard | B59: 14712 | G59: Shari | H59: 4.431
A60: Craig | B60: 45146 | G60: Kaur | H60: 4.326
A61: Debra | B61: 21954 | G61: Nakyun | H61: 2.7
A62: Ewelina | B62: 33319 | G62: Manavbir | H62: 2.518
A63: Manavbir | B63: 7638 | G63: Sykes | H63: 3.117
A64: Richard | B64: 15678 | G64: Kaur | H64: 3.717
A65: Sarah | B65: 7138 | G65: Denise | H65: 3.622
A66: Gianna | B66: 40848 | G66: Shari | H66: 2.99
A67: Nelia | B67: 32714 | G67: Elain | H67: 4.352
A68: Sarah | B68: 46889 | G68: Sarah | H68: 2.048
A69: Manavbir | B69: 25614 | G69: Daniel | H69: 2.695
A70: Kaur | B70: 5294 | G70: Kaur | H70: 2.606
A71: Elain | B71: 19448 | G71: Nelia | H71: 2.201
A72: Gianna | B72: 7232 | G72: Kaur | H72: 3.745
A73: Debra | B73: 49129 | G73: Nakyun | H73: 2.623
A74: Jason | B74: 10720 | G74: Ewelina | H74: 2.488
A75: Shari | B75: 8892 | G75: Michael | H75: 3.346
A76: Nelia | B76: 15063 | G76: Nakyun | H76: 2.382
A77: Sarah | B77: 44344 | G77: Mansa | H77: 3.252
A78: Jason | B78: 48600 | G78: Richard | H78: 3.319
A79: Mitchell | B79: 28247 | G79: Richard | H79: 2.302
A80: Gianna | B80: 44470 | G80: Sarah | H80: 2.984
A81: Jason | B81: 9839 | G81: Michelle | H81: 3.338
A82: Michael | B82: 9584 | G82: Debra | H82: 3.459
A83: Sarah | B83: 12220 | G83: Debra | H83: 4.759
A84: Richard | B84: 15578 | G84: Jason | H84: 3.602
A85: Sarah | B85: 45413 | G85: Michelle | H85: 2.622
A86: Gianna | B86: 31959 | G86: Daniel | H86: 2.25
A87: Mi | B87: 23107 | G87: Jason | H87: 4.335
A88: Sarah | B88: 28368 | G88: Ewelina | H88: 4.414
A89: Michael | B89: 36489 | G89: Michael | H89: 2.758
A90: Yla-Katrina | B90: 5612 | G90: Craig | H90: 4.287
A91: Christina | B91: 36978 | G91: Michael | H91: 3.178
A92: Craig | B92: 24439 | G92: Elain | H92: 3.898
A93: Mitchell | B93: 26715 | G93: Christina | H93: 4.149
A94: Mi | B94: 23882 | G94: Jason | H94: 2.918
A95: Craig | B95: 21426 | G95: Carol | H95: 4.76
A96: Mitchell | B96: 38312 | G96: Craig | H96: 2.416
A97: Mi | B97: 23551 | G97: Jason | H97: 4.234
A98: Nakyun | B98: 28866 | G98: Nakyun | H98: 5
A99: Nelia | B99: 8812 | G99: Sykes | H99: 3.782
A100: Sarah | B100: 61911 | G100: Nakyun | H100: 4.12
A101: Manavbir | B101: 16958 | G101: Gianna | H101: 2.095
A102: Mi | B102: 17952 | G102: Manavbir | H102: 4.533
A103: Elain | B103: 33291 | G103: Elain | H103: 4.431
A104: Mi | B104: 6800 | G104: Yla-Katrina | H104: 2.834
A105: Carol | B105: 24953 | G105: Daniel | H105: 4.848
A106: Nakyun | B106: 31603 | G106: Yla-Katrina | H106: 2.807
A107: Michael | B107: 30943 | G107: Sarah | H107: 2.238
A108: Kaur | B108: 38208 | G108: Mansa | H108: 3.099
A109: Mitchell | B109: 35127 | G109: Elain | H109: 3.752
A110: Sykes | B110: 43569 | G110: Denise | H110: 4.38
A111: Carol | B111: 41682 | G111: Mi | H111: 4.367
A112: Mansa | B112: 42821 | G112: Mi | H112: 4.444
A113: Richard | B113: 20726 | G113: Craig | H113: 3.146
A114: Sykes | B114: 25969 | G114: Yla-Katrina | H114: 2.861
A115: Christina | B115: 46134 | G115: Yla-Katrina | H115: 4.856
A116: Jason | B116: 43807 | G116: Sarah | H116: 2.978
A117: Sarah | B117: 48593 | G117: Michelle | H117: 2.722
A118: Mitchell | B118: 43707 | G118: Janita | H118: 4.907
A119: Mitchell | B119: 45405 | G119: Nelia | H119: 4.484
A120: Debra | B120: 7850 | G120: Craig | H120: 4.91
A121: Manavbir | B121: 36076 | G121: Kaur | H121: 3.796
A122: Nakyun | B122: 20109 | G122: Debra | H122: 3.608
A123: Michelle | B123: 32743 | G123: Debra | H123: 2.087
A124: Denise | B124: 19508 | G124: Michelle | H124: 4.411
A125: Mitchell | B125: 16002 | G125: Richard | H125: 2.362
A126: Nelia | B126: 16402 | G126: Daniel | H126: 3.204
A127: Mitchell | B127: 12451 | G127: Mansa | H127: 4.925
A128: Michelle | B128: 46644 | G128: Michael | H128: 2.03
A129: Carol | B129: 44253 | G129: Jason | H129: 3.32
A130: Christina | B130: 49494 | G130: Ewelina | H130: 2.574
A131: Nakyun | B131: 47340 | G131: Craig | H131: 3.385
A132: Carol | B132: 6681 | G132: Nakyun | H132: 2.491
A133: Nelia | B133: 40975 | G133: Janita | H133: 3.968
A134: Michelle | B134: 49190 | G134: Richard | H134: 2.974
A135: Mansa | B135: 32908 | G135: Mansa | H135: 4.239
A136: Nelia | B136: 7894 | G136: Janita | H136: 4.668
A137: Yla-Katrina | B137: 31206 | G137: Michelle | H137: 3.642
A138: Mi | B138: 45239 | G138: Mi | H138: 3.587
A139: Jason | B139: 32214 | G139: Craig | H139: 4.312
A140: Richard | B140: 14015 | G140: Manavbir | H140: 3.173
A141: Daniel | B141: 34706 | G141: Shari | H141: 4.479
A142: Janita | B142: 45676 | G142: Shari | H142: 3.543
A143: Ewelina | B143: 7488 | G143: Craig | H143: 3.448
A144: Denise | B144: 30415 | G144: Michael | H144: 4.267
A145: Janita | B145: 19724 | G145: Daniel | H145: 4.352
A146: Christina | B146: 5252 | G146: Mi | H146: 4.186
A147: Sykes | B147: 39222 | G147: Jason | H147: 4.928
A148: Gianna | B148: 11449 | G148: Janita | H148: 3.724
A149: Ewelina | B149: 39876 | G149: Mitchell | H149: 4.146
A150: Michelle | B150: 41728 | G150: Gianna | H150: 3.617
A151: Kaur | B151: 48797 | G151: Sarah | H151: 3.177
A152: Gianna | B152: 39504 | G152: Janita | H152: 4.828
A153: Michael | B153: 14342 | G153: Manavbir | H153: 3.042
A154: Jason | B154: 30224 | G154: Shari | H154: 4.935
A155: Craig | B155: 38293 | G155: Sarah | H155: 3.272
A156: Richard | B156: 43317 | G156: Nakyun | H156: 3.483
A157: Denise | B157: 34112 | G157: Carol | H157: 2.252
A158: Michael | B158: 48024 | G158: Ewelina | H158: 3.356
A159: Kaur | B159: 47831 | G159: Daniel | H159: 2.6
A160: Michael | B160: 44663 | G160: Daniel | H160: 2.995
A161: Jason | B161: 36798 | G161: Jason | H161: 4.443
A162: Yla-Katrina | B162: 21365 | G162: Yla-Katrina | H162: 4.837
A163: Nakyun | B163: 45944 | G163: Denise | H163: 4.648
A164: Mitchell | B164: 33527 | G164: Denise | H164: 4.217
A165: Sykes | B165: 48077 | G165: Sarah | H165: 3.557
A166: Mi | B166: 16983 | G166: Kaur | H166: 3.123
A167: Michelle | B167: 6251 | G167: Michelle | H167: 4.079
A168: Kaur | B168: 20968 | G168: Yla-Katrina | H168: 3.403
A169: Mitchell | B169: 9759 | G169: Elain | H169: 4.164
A170: Shari | B170: 11835 | G170: Mi | H170: 2.756
A171: Mansa | B171: 14181 | G171: Debra | H171: 2.265
A172: Carol | B172: 10117 | G172: Michelle | H172: 4.062
A173: Ewelina | B173: 48418 | G173: Richard | H173: 4.796
A174: Carol | B174: 36245 | G174: Debra | H174: 2.408
A175: Denise | B175: 31306 | G175: Shari | H175: 4.051
A176: Daniel | B176: 7240 | G176: Richard | H176: 4.211
A177: Yla-Katrina | B177: 14883 | G177: Yla-Katrina | H177: 2.658
A178: Carol | B178: 13871 | G178: Yla-Katrina | H178: 4.752
A179: Mi | B179: 26792 | G179: Nelia | H179: 3.046
A180: Sarah | B180: 13150 | G180: Michelle | H180: 3.482
A181: Ewelina | B181: 47850 | G181: Ewelina | H181: 3.115
A182: Denise | B182: 40529 | G182: Mansa | H182: 4.009
A183: Debra | B183: 35013 | G183: Michael | H183: 4.464
A184: Janita | B184: 16459 | G184: Manavbir | H184: 4.312
A185: Nakyun | B185: 10897 | G185: Sarah | H185: 3.187
A186: Craig | B186: 24361 | G186: Shari | H186: 3.467
A187: Kaur | B187: 44746 | G187: Ewelina | H187: 3.712
A188: Jason | B188: 20768 | G188: Nelia | H188: 4.481
A189: Michelle | B189: 22517 | G189: Michael | H189: 2.543
A190: Yla-Katrina | B190: 11307 | G190: Michelle | H190: 2.274
A191: Craig | B191: 14094 | G191: Daniel | H191: 2.251
A192: Yla-Katrina | B192: 39123 | G192: Michelle | H192: 3.589
A193: Kaur | B193: 28032 | G193: Shari | H193: 4.172
A194: Carol | B194: 10296 | G194: Mitchell | H194: 3.512
A195: Daniel | B195: 42922 | G195: Jason | H195: 2.653
A196: Elain | B196: 37938 | G196: Sarah | H196: 2.133
A197: Richard | B197: 10818 | G197: Manavbir | H197: 2.557
A198: Mi | B198: 11023 | G198: Mitchell | H198: 2.102
A199: Yla-Katrina | B199: 23907 | G199: Mi | H199: 4.202
A200: Mi | B200: 84341 | G200: Michelle | H200: 2.248
... 990 more rows

Sheet Large Small (an) (hidden)
A1: Sales Rep | B1: Sales | D1: # | E1: Large | G1: Sales Rep | H1: Time To Make Part | J1: # | K1: Small | Q1: Rand formulas:
A2: Richard | B2: 5937 | D2: 1 | E2: =LARGE($B$2:$B$1190,D2) -> 97748 | G2: Denise | H2: 4.126 | J2: 1 | K2: =SMALL($H$2:$H$1190,J2) -> 1.194 | Q2: =INDEX(Names,INT(RAND()*COUNTA(Names)+1)) -> Michael
A3: Manavbir | B3: 19551 | D3: 2 | E3: 91999 | G3: Manavbir | H3: 4.52 | J3: 2 | K3: =SMALL($H$2:$H$1190,J3) -> 1.381 | Q3: =IF(MOD(ROW(),100),RANDBETWEEN(5000,50000),RANDBETWEEN(60000,100000)) -> 24952
A4: Janita | B4: 22010 | D4: 3 | E4: 90280 | G4: Nelia | H4: 3.742 | J4: 3 | K4: 1.555 | Q4: =IF(MOD(ROW(),375),RANDBETWEEN(2000,5000)/1000,RANDBETWEEN(1000,1750)/1000) -> 2.526
A5: Mitchell | B5: 26146 | D5: 4 | E5: 86845 | G5: Nelia | H5: 3.92 | J5: 4 | K5: 2.001
A6: Christina | B6: 16621 | D6: 5 | E6: 84341 | G6: Denise | H6: 4.426 | J6: 5 | K6: 2.002
A7: Nakyun | B7: 37653 | G7: Denise | H7: 2.12
A8: Mitchell | B8: 16018 | D8: # | E8: Large | G8: Carol | H8: 2.023 | J8: # | K8: Large
A9: Daniel | B9: 31850 | D9: =ROWS(D$9:D9) -> 1 | E9: =LARGE($B$2:$B$1190,D9) -> 97748 | G9: Kaur | H9: 2.731 | J9: =ROWS(J$9:J9) -> 1 | K9: =SMALL($H$2:$H$1190,J9) -> 1.194
A10: Mi | B10: 29517 | D10: =ROWS(D$9:D10) -> 2 | E10: 91999 | G10: Shari | H10: 2.434 | J10: =ROWS(J$9:J10) -> 2 | K10: =SMALL($H$2:$H$1190,J10) -> 1.381
A11: Richard | B11: 47477 | D11: =ROWS(D$9:D11) -> 3 | E11: 90280 | G11: Mitchell | H11: 4.196 | J11: =ROWS(J$9:J11) -> 3 | K11: 1.555
A12: Kaur | B12: 9008 | D12: =ROWS(D$9:D12) -> 4 | E12: 86845 | G12: Janita | H12: 4.458 | J12: =ROWS(J$9:J12) -> 4 | K12: 2.001
A13: Ewelina | B13: 13547 | D13: =ROWS(D$9:D13) -> 5 | E13: 84341 | G13: Michael | H13: 4.088 | J13: =ROWS(J$9:J13) -> 5 | K13: 2.002
A14: Ewelina | B14: 49100 | G14: Debra | H14: 4.836
A15: Mitchell | B15: 26324 | G15: Yla-Katrina | H15: 3.182
A16: Nelia | B16: 38612 | G16: Ewelina | H16: 2.828
A17: Craig | B17: 40900 | G17: Ewelina | H17: 4.926
A18: Carol | B18: 26761 | G18: Janita | H18: 3.414
A19: Nelia | B19: 21598 | G19: Sarah | H19: 2.651
A20: Denise | B20: 6625 | G20: Carol | H20: 3.413
A21: Richard | B21: 37758 | G21: Shari | H21: 3.915
A22: Nelia | B22: 45437 | G22: Michael | H22: 2.566
A23: Nelia | B23: 18107 | G23: Debra | H23: 4.688
A24: Richard | B24: 39241 | G24: Craig | H24: 2.138
A25: Sarah | B25: 7544 | G25: Denise | H25: 4.648
A26: Nakyun | B26: 38052 | G26: Shari | H26: 3.484
A27: Janita | B27: 27275 | G27: Carol | H27: 2.954
A28: Kaur | B28: 32573 | G28: Denise | H28: 4.685
A29: Shari | B29: 32327 | G29: Carol | H29: 4.274
A30: Shari | B30: 15245 | G30: Carol | H30: 3.112
A31: Yla-Katrina | B31: 38620 | G31: Nelia | H31: 3.159
A32: Denise | B32: 26444 | G32: Carol | H32: 4.92
A33: Richard | B33: 40199 | G33: Michael | H33: 3.452
A34: Carol | B34: 36011 | G34: Yla-Katrina | H34: 4.286
A35: Michelle | B35: 45422 | G35: Nelia | H35: 3.505
A36: Nakyun | B36: 40283 | G36: Daniel | H36: 2.712
A37: Ewelina | B37: 37862 | G37: Craig | H37: 2.778
A38: Janita | B38: 47855 | G38: Michael | H38: 3.911
A39: Nelia | B39: 29383 | G39: Michelle | H39: 3.672
A40: Mi | B40: 36334 | G40: Ewelina | H40: 4.742
A41: Nakyun | B41: 40325 | G41: Kaur | H41: 4.516
A42: Manavbir | B42: 7257 | G42: Mansa | H42: 4.241
A43: Janita | B43: 6429 | G43: Sarah | H43: 4.838
A44: Manavbir | B44: 32666 | G44: Mansa | H44: 2.616
A45: Shari | B45: 14516 | G45: Daniel | H45: 2.803
A46: Manavbir | B46: 17731 | G46: Sykes | H46: 3.468
A47: Mi | B47: 40705 | G47: Nelia | H47: 3.804
A48: Craig | B48: 7940 | G48: Manavbir | H48: 2.142
A49: Nelia | B49: 16064 | G49: Carol | H49: 2.962
A50: Shari | B50: 34144 | G50: Manavbir | H50: 4.907
A51: Michael | B51: 32784 | G51: Nelia | H51: 2.624
A52: Elain | B52: 9958 | G52: Michelle | H52: 4.723
A53: Nelia | B53: 48074 | G53: Michael | H53: 3.353
A54: Gianna | B54: 36132 | G54: Michelle | H54: 4.337
A55: Denise | B55: 11251 | G55: Craig | H55: 3.513
A56: Denise | B56: 47943 | G56: Carol | H56: 2.783
A57: Jason | B57: 44129 | G57: Michael | H57: 2.132
A58: Craig | B58: 7793 | G58: Mi | H58: 3.674
A59: Richard | B59: 14712 | G59: Shari | H59: 4.431
A60: Craig | B60: 45146 | G60: Kaur | H60: 4.326
A61: Debra | B61: 21954 | G61: Nakyun | H61: 2.7
A62: Ewelina | B62: 33319 | G62: Manavbir | H62: 2.518
A63: Manavbir | B63: 7638 | G63: Sykes | H63: 3.117
A64: Richard | B64: 15678 | G64: Kaur | H64: 3.717
A65: Sarah | B65: 7138 | G65: Denise | H65: 3.622
A66: Gianna | B66: 40848 | G66: Shari | H66: 2.99
A67: Nelia | B67: 32714 | G67: Elain | H67: 4.352
A68: Sarah | B68: 46889 | G68: Sarah | H68: 2.048
A69: Manavbir | B69: 25614 | G69: Daniel | H69: 2.695
A70: Kaur | B70: 5294 | G70: Kaur | H70: 2.606
A71: Elain | B71: 19448 | G71: Nelia | H71: 2.201
A72: Gianna | B72: 7232 | G72: Kaur | H72: 3.745
A73: Debra | B73: 49129 | G73: Nakyun | H73: 2.623
A74: Jason | B74: 10720 | G74: Ewelina | H74: 2.488
A75: Shari | B75: 8892 | G75: Michael | H75: 3.346
A76: Nelia | B76: 15063 | G76: Nakyun | H76: 2.382
A77: Sarah | B77: 44344 | G77: Mansa | H77: 3.252
A78: Jason | B78: 48600 | G78: Richard | H78: 3.319
A79: Mitchell | B79: 28247 | G79: Richard | H79: 2.302
A80: Gianna | B80: 44470 | G80: Sarah | H80: 2.984
A81: Jason | B81: 9839 | G81: Michelle | H81: 3.338
A82: Michael | B82: 9584 | G82: Debra | H82: 3.459
A83: Sarah | B83: 12220 | G83: Debra | H83: 4.759
A84: Richard | B84: 15578 | G84: Jason | H84: 3.602
A85: Sarah | B85: 45413 | G85: Michelle | H85: 2.622
A86: Gianna | B86: 31959 | G86: Daniel | H86: 2.25
A87: Mi | B87: 23107 | G87: Jason | H87: 4.335
A88: Sarah | B88: 28368 | G88: Ewelina | H88: 4.414
A89: Michael | B89: 36489 | G89: Michael | H89: 2.758
A90: Yla-Katrina | B90: 5612 | G90: Craig | H90: 4.287
A91: Christina | B91: 36978 | G91: Michael | H91: 3.178
A92: Craig | B92: 24439 | G92: Elain | H92: 3.898
A93: Mitchell | B93: 26715 | G93: Christina | H93: 4.149
A94: Mi | B94: 23882 | G94: Jason | H94: 2.918
A95: Craig | B95: 21426 | G95: Carol | H95: 4.76
A96: Mitchell | B96: 38312 | G96: Craig | H96: 2.416
A97: Mi | B97: 23551 | G97: Jason | H97: 4.234
A98: Nakyun | B98: 28866 | G98: Nakyun | H98: 5
A99: Nelia | B99: 8812 | G99: Sykes | H99: 3.782
A100: Sarah | B100: 61911 | G100: Nakyun | H100: 4.12
A101: Manavbir | B101: 16958 | G101: Gianna | H101: 2.095
A102: Mi | B102: 17952 | G102: Manavbir | H102: 4.533
A103: Elain | B103: 33291 | G103: Elain | H103: 4.431
A104: Mi | B104: 6800 | G104: Yla-Katrina | H104: 2.834
A105: Carol | B105: 24953 | G105: Daniel | H105: 4.848
A106: Nakyun | B106: 31603 | G106: Yla-Katrina | H106: 2.807
A107: Michael | B107: 30943 | G107: Sarah | H107: 2.238
A108: Kaur | B108: 38208 | G108: Mansa | H108: 3.099
A109: Mitchell | B109: 35127 | G109: Elain | H109: 3.752
A110: Sykes | B110: 43569 | G110: Denise | H110: 4.38
A111: Carol | B111: 41682 | G111: Mi | H111: 4.367
A112: Mansa | B112: 42821 | G112: Mi | H112: 4.444
A113: Richard | B113: 20726 | G113: Craig | H113: 3.146
A114: Sykes | B114: 25969 | G114: Yla-Katrina | H114: 2.861
A115: Christina | B115: 46134 | G115: Yla-Katrina | H115: 4.856
A116: Jason | B116: 43807 | G116: Sarah | H116: 2.978
A117: Sarah | B117: 48593 | G117: Michelle | H117: 2.722
A118: Mitchell | B118: 43707 | G118: Janita | H118: 4.907
A119: Mitchell | B119: 45405 | G119: Nelia | H119: 4.484
A120: Debra | B120: 7850 | G120: Craig | H120: 4.91
A121: Manavbir | B121: 36076 | G121: Kaur | H121: 3.796
A122: Nakyun | B122: 20109 | G122: Debra | H122: 3.608
A123: Michelle | B123: 32743 | G123: Debra | H123: 2.087
A124: Denise | B124: 19508 | G124: Michelle | H124: 4.411
A125: Mitchell | B125: 16002 | G125: Richard | H125: 2.362
A126: Nelia | B126: 16402 | G126: Daniel | H126: 3.204
A127: Mitchell | B127: 12451 | G127: Mansa | H127: 4.925
A128: Michelle | B128: 46644 | G128: Michael | H128: 2.03
A129: Carol | B129: 44253 | G129: Jason | H129: 3.32
A130: Christina | B130: 49494 | G130: Ewelina | H130: 2.574
A131: Nakyun | B131: 47340 | G131: Craig | H131: 3.385
A132: Carol | B132: 6681 | G132: Nakyun | H132: 2.491
A133: Nelia | B133: 40975 | G133: Janita | H133: 3.968
A134: Michelle | B134: 49190 | G134: Richard | H134: 2.974
A135: Mansa | B135: 32908 | G135: Mansa | H135: 4.239
A136: Nelia | B136: 7894 | G136: Janita | H136: 4.668
A137: Yla-Katrina | B137: 31206 | G137: Michelle | H137: 3.642
A138: Mi | B138: 45239 | G138: Mi | H138: 3.587
A139: Jason | B139: 32214 | G139: Craig | H139: 4.312
A140: Richard | B140: 14015 | G140: Manavbir | H140: 3.173
A141: Daniel | B141: 34706 | G141: Shari | H141: 4.479
A142: Janita | B142: 45676 | G142: Shari | H142: 3.543
A143: Ewelina | B143: 7488 | G143: Craig | H143: 3.448
A144: Denise | B144: 30415 | G144: Michael | H144: 4.267
A145: Janita | B145: 19724 | G145: Daniel | H145: 4.352
A146: Christina | B146: 5252 | G146: Mi | H146: 4.186
A147: Sykes | B147: 39222 | G147: Jason | H147: 4.928
A148: Gianna | B148: 11449 | G148: Janita | H148: 3.724
A149: Ewelina | B149: 39876 | G149: Mitchell | H149: 4.146
A150: Michelle | B150: 41728 | G150: Gianna | H150: 3.617
A151: Kaur | B151: 48797 | G151: Sarah | H151: 3.177
A152: Gianna | B152: 39504 | G152: Janita | H152: 4.828
A153: Michael | B153: 14342 | G153: Manavbir | H153: 3.042
A154: Jason | B154: 30224 | G154: Shari | H154: 4.935
A155: Craig | B155: 38293 | G155: Sarah | H155: 3.272
A156: Richard | B156: 43317 | G156: Nakyun | H156: 3.483
A157: Denise | B157: 34112 | G157: Carol | H157: 2.252
A158: Michael | B158: 48024 | G158: Ewelina | H158: 3.356
A159: Kaur | B159: 47831 | G159: Daniel | H159: 2.6
A160: Michael | B160: 44663 | G160: Daniel | H160: 2.995
A161: Jason | B161: 36798 | G161: Jason | H161: 4.443
A162: Yla-Katrina | B162: 21365 | G162: Yla-Katrina | H162: 4.837
A163: Nakyun | B163: 45944 | G163: Denise | H163: 4.648
A164: Mitchell | B164: 33527 | G164: Denise | H164: 4.217
A165: Sykes | B165: 48077 | G165: Sarah | H165: 3.557
A166: Mi | B166: 16983 | G166: Kaur | H166: 3.123
A167: Michelle | B167: 6251 | G167: Michelle | H167: 4.079
A168: Kaur | B168: 20968 | G168: Yla-Katrina | H168: 3.403
A169: Mitchell | B169: 9759 | G169: Elain | H169: 4.164
A170: Shari | B170: 11835 | G170: Mi | H170: 2.756
A171: Mansa | B171: 14181 | G171: Debra | H171: 2.265
A172: Carol | B172: 10117 | G172: Michelle | H172: 4.062
A173: Ewelina | B173: 48418 | G173: Richard | H173: 4.796
A174: Carol | B174: 36245 | G174: Debra | H174: 2.408
A175: Denise | B175: 31306 | G175: Shari | H175: 4.051
A176: Daniel | B176: 7240 | G176: Richard | H176: 4.211
A177: Yla-Katrina | B177: 14883 | G177: Yla-Katrina | H177: 2.658
A178: Carol | B178: 13871 | G178: Yla-Katrina | H178: 4.752
A179: Mi | B179: 26792 | G179: Nelia | H179: 3.046
A180: Sarah | B180: 13150 | G180: Michelle | H180: 3.482
A181: Ewelina | B181: 47850 | G181: Ewelina | H181: 3.115
A182: Denise | B182: 40529 | G182: Mansa | H182: 4.009
A183: Debra | B183: 35013 | G183: Michael | H183: 4.464
A184: Janita | B184: 16459 | G184: Manavbir | H184: 4.312
A185: Nakyun | B185: 10897 | G185: Sarah | H185: 3.187
A186: Craig | B186: 24361 | G186: Shari | H186: 3.467
A187: Kaur | B187: 44746 | G187: Ewelina | H187: 3.712
A188: Jason | B188: 20768 | G188: Nelia | H188: 4.481
A189: Michelle | B189: 22517 | G189: Michael | H189: 2.543
A190: Yla-Katrina | B190: 11307 | G190: Michelle | H190: 2.274
A191: Craig | B191: 14094 | G191: Daniel | H191: 2.251
A192: Yla-Katrina | B192: 39123 | G192: Michelle | H192: 3.589
A193: Kaur | B193: 28032 | G193: Shari | H193: 4.172
A194: Carol | B194: 10296 | G194: Mitchell | H194: 3.512
A195: Daniel | B195: 42922 | G195: Jason | H195: 2.653
A196: Elain | B196: 37938 | G196: Sarah | H196: 2.133
A197: Richard | B197: 10818 | G197: Manavbir | H197: 2.557
A198: Mi | B198: 11023 | G198: Mitchell | H198: 2.102
A199: Yla-Katrina | B199: 23907 | G199: Mi | H199: 4.202
A200: Mi | B200: 84341 | G200: Michelle | H200: 2.248
... 990 more rows

Sheet Sort List
A1: Calls Made For Month | B1: Name | D1: Sort List | E1: Name | Q1: Duplicates - array formula
A2: =RANDBETWEEN(50000,390000)/100 -> 2366.2 | B2: Elain | N2: #? | O2: 10 | Q2: Names | R2: ="Top "&O2 -> Top 10
A3: 3869.07 | B3: Carol | Q3: =INDEX($B$2:$B$25,SMALL(IF($A$2:$A$25=R3,ROW($B$2:$B$25)-ROW($B$2)+1),COUNTIF(R$3:R3,R3))) -> Carol | R3: =LARGE($A$2:$A$25,ROWS(R$3:R3)) -> 3869.07
A4: 520.55 | B4: Gianna | Q4: =INDEX($B$2:$B$25,SMALL(IF($A$2:$A$25=R4,ROW($B$2:$B$25)-ROW($B$2)+1),COUNTIF(R$3:R4,R4))) -> Sykes | R4: =LARGE($A$2:$A$25,ROWS(R$3:R4)) -> 3841.03
A5: 1346.13 | B5: Jason | Q5: =INDEX($B$2:$B$25,SMALL(IF($A$2:$A$25=R5,ROW($B$2:$B$25)-ROW($B$2)+1),COUNTIF(R$3:R5,R5))) -> Michael | R5: =LARGE($A$2:$A$25,ROWS(R$3:R5)) -> 3393.5
A6: 881.24 | B6: Michelle | Q6: =INDEX($B$2:$B$25,SMALL(IF($A$2:$A$25=R6,ROW($B$2:$B$25)-ROW($B$2)+1),COUNTIF(R$3:R6,R6))) -> Craig | R6: =LARGE($A$2:$A$25,ROWS(R$3:R6)) -> 3302.71
A7: 2600.19 | B7: Shari | Q7: =INDEX($B$2:$B$25,SMALL(IF($A$2:$A$25=R7,ROW($B$2:$B$25)-ROW($B$2)+1),COUNTIF(R$3:R7,R7))) -> Christina | R7: =LARGE($A$2:$A$25,ROWS(R$3:R7)) -> 3008.08
A8: 1584.87 | B8: Denise | Q8: =INDEX($B$2:$B$25,SMALL(IF($A$2:$A$25=R8,ROW($B$2:$B$25)-ROW($B$2)+1),COUNTIF(R$3:R8,R8))) -> Nakyun | R8: =LARGE($A$2:$A$25,ROWS(R$3:R8)) -> 2967.37
A9: 558.92 | B9: Daniel | Q9: =INDEX($B$2:$B$25,SMALL(IF($A$2:$A$25=R9,ROW($B$2:$B$25)-ROW($B$2)+1),COUNTIF(R$3:R9,R9))) -> Kaur | R9: =LARGE($A$2:$A$25,ROWS(R$3:R9)) -> 2686.98
A10: 2391.37 | B10: Sarah | Q10: =INDEX($B$2:$B$25,SMALL(IF($A$2:$A$25=R10,ROW($B$2:$B$25)-ROW($B$2)+1),COUNTIF(R$3:R10,R10))) -> Janita | R10: =LARGE($A$2:$A$25,ROWS(R$3:R10)) -> 2638.88
A11: 3008.08 | B11: Christina | Q11: =INDEX($B$2:$B$25,SMALL(IF($A$2:$A$25=R11,ROW($B$2:$B$25)-ROW($B$2)+1),COUNTIF(R$3:R11,R11))) -> Shari | R11: =LARGE($A$2:$A$25,ROWS(R$3:R11)) -> 2600.19
A12: 2638.88 | B12: Janita | Q12: =INDEX($B$2:$B$25,SMALL(IF($A$2:$A$25=R12,ROW($B$2:$B$25)-ROW($B$2)+1),COUNTIF(R$3:R12,R12))) -> Sarah | R12: =LARGE($A$2:$A$25,ROWS(R$3:R12)) -> 2391.37
A13: 1832.8 | B13: Debra
A14: 1269.82 | B14: Nelia
A15: 2022.31 | B15: Manavbir
A16: 1808.52 | B16: Richard
A17: 1660.88 | B17: Yla-Katrina
A18: 2686.98 | B18: Kaur
A19: 2367.99 | B19: Mansa
A20: 2245.56 | B20: Mitchell
A21: 3302.71 | B21: Craig
A22: 3841.03 | B22: Sykes
A23: 1598.8 | B23: Ewelina
A24: 3393.5 | B24: Michael
A25: 2967.37 | B25: Nakyun

Sheet Sort List (an) (hidden)
A1: Calls Made For Month | B1: Name | D1: Sort List | E1: Name | Q1: Duplicates - array formula
A2: =RANDBETWEEN(50000,390000)/100 -> 3678.07 | B2: Elain | D2: =LARGE($A$2:$A$25,ROWS(D$2:D2)) -> 3872.52 | E2: =VLOOKUP(D2,$A$2:$B$25,2,0) -> Denise | N2: #? | O2: 10 | Q2: Names | R2: ="Top "&O2 -> Top 10
A3: 3733.78 | B3: Carol | D3: =LARGE($A$2:$A$25,ROWS(D$2:D3)) -> 3733.78 | E3: =VLOOKUP(D3,$A$2:$B$25,2,0) -> Carol | Q3: =INDEX($B$2:$B$25,SMALL(IF($A$2:$A$25=R3,ROW($B$2:$B$25)-ROW($B$2)+1),COUNTIF(R$3:R3,R3))) -> Denise | R3: =LARGE($A$2:$A$25,ROWS(R$3:R3)) -> 3872.52
A4: 2948.84 | B4: Gianna | D4: =LARGE($A$2:$A$25,ROWS(D$2:D4)) -> 3678.07 | E4: Elain | Q4: =INDEX($B$2:$B$25,SMALL(IF($A$2:$A$25=R4,ROW($B$2:$B$25)-ROW($B$2)+1),COUNTIF(R$3:R4,R4))) -> Carol | R4: =LARGE($A$2:$A$25,ROWS(R$3:R4)) -> 3733.78
A5: 1265.75 | B5: Jason | D5: =LARGE($A$2:$A$25,ROWS(D$2:D5)) -> 3603.95 | E5: Mansa | Q5: =INDEX($B$2:$B$25,SMALL(IF($A$2:$A$25=R5,ROW($B$2:$B$25)-ROW($B$2)+1),COUNTIF(R$3:R5,R5))) -> Elain | R5: =LARGE($A$2:$A$25,ROWS(R$3:R5)) -> 3678.07
A6: 3492.74 | B6: Michelle | D6: =LARGE($A$2:$A$25,ROWS(D$2:D6)) -> 3577.03 | E6: Sarah | Q6: =INDEX($B$2:$B$25,SMALL(IF($A$2:$A$25=R6,ROW($B$2:$B$25)-ROW($B$2)+1),COUNTIF(R$3:R6,R6))) -> Mansa | R6: =LARGE($A$2:$A$25,ROWS(R$3:R6)) -> 3603.95
A7: 3444.28 | B7: Shari | D7: =LARGE($A$2:$A$25,ROWS(D$2:D7)) -> 3492.74 | E7: Michelle | Q7: =INDEX($B$2:$B$25,SMALL(IF($A$2:$A$25=R7,ROW($B$2:$B$25)-ROW($B$2)+1),COUNTIF(R$3:R7,R7))) -> Sarah | R7: =LARGE($A$2:$A$25,ROWS(R$3:R7)) -> 3577.03
A8: 3872.52 | B8: Denise | D8: =LARGE($A$2:$A$25,ROWS(D$2:D8)) -> 3444.28 | E8: Shari | Q8: =INDEX($B$2:$B$25,SMALL(IF($A$2:$A$25=R8,ROW($B$2:$B$25)-ROW($B$2)+1),COUNTIF(R$3:R8,R8))) -> Michelle | R8: =LARGE($A$2:$A$25,ROWS(R$3:R8)) -> 3492.74
A9: 686.93 | B9: Daniel | D9: =LARGE($A$2:$A$25,ROWS(D$2:D9)) -> 3163.42 | E9: Yla-Katrina | Q9: =INDEX($B$2:$B$25,SMALL(IF($A$2:$A$25=R9,ROW($B$2:$B$25)-ROW($B$2)+1),COUNTIF(R$3:R9,R9))) -> Shari | R9: =LARGE($A$2:$A$25,ROWS(R$3:R9)) -> 3444.28
A10: 3577.03 | B10: Sarah | D10: =LARGE($A$2:$A$25,ROWS(D$2:D10)) -> 3038.22 | E10: Richard | Q10: =INDEX($B$2:$B$25,SMALL(IF($A$2:$A$25=R10,ROW($B$2:$B$25)-ROW($B$2)+1),COUNTIF(R$3:R10,R10))) -> Yla-Katrina | R10: =LARGE($A$2:$A$25,ROWS(R$3:R10)) -> 3163.42
A11: 737.19 | B11: Christina | D11: =LARGE($A$2:$A$25,ROWS(D$2:D11)) -> 2948.84 | E11: Gianna | Q11: =INDEX($B$2:$B$25,SMALL(IF($A$2:$A$25=R11,ROW($B$2:$B$25)-ROW($B$2)+1),COUNTIF(R$3:R11,R11))) -> Richard | R11: =LARGE($A$2:$A$25,ROWS(R$3:R11)) -> 3038.22
A12: 1254.78 | B12: Janita | D12: =LARGE($A$2:$A$25,ROWS(D$2:D12)) -> 2783.66 | E12: Kaur | Q12: =INDEX($B$2:$B$25,SMALL(IF($A$2:$A$25=R12,ROW($B$2:$B$25)-ROW($B$2)+1),COUNTIF(R$3:R12,R12))) -> Gianna | R12: =LARGE($A$2:$A$25,ROWS(R$3:R12)) -> 2948.84
A13: 2194 | B13: Debra | D13: =LARGE($A$2:$A$25,ROWS(D$2:D13)) -> 2677.53 | E13: Nakyun
A14: 1464.54 | B14: Nelia | D14: =LARGE($A$2:$A$25,ROWS(D$2:D14)) -> 2359.1 | E14: Ewelina
A15: 1378.28 | B15: Manavbir | D15: =LARGE($A$2:$A$25,ROWS(D$2:D15)) -> 2194 | E15: Debra
A16: 3038.22 | B16: Richard | D16: =LARGE($A$2:$A$25,ROWS(D$2:D16)) -> 2107.02 | E16: Mitchell
A17: 3163.42 | B17: Yla-Katrina | D17: =LARGE($A$2:$A$25,ROWS(D$2:D17)) -> 1676.98 | E17: Michael
A18: 2783.66 | B18: Kaur | D18: =LARGE($A$2:$A$25,ROWS(D$2:D18)) -> 1464.54 | E18: Nelia
A19: 3603.95 | B19: Mansa | D19: =LARGE($A$2:$A$25,ROWS(D$2:D19)) -> 1378.28 | E19: Manavbir
A20: 2107.02 | B20: Mitchell | D20: =LARGE($A$2:$A$25,ROWS(D$2:D20)) -> 1353.19 | E20: Sykes
A21: 991.79 | B21: Craig | D21: =LARGE($A$2:$A$25,ROWS(D$2:D21)) -> 1265.75 | E21: Jason
A22: 1353.19 | B22: Sykes | D22: =LARGE($A$2:$A$25,ROWS(D$2:D22)) -> 1254.78 | E22: Janita
A23: 2359.1 | B23: Ewelina | D23: =LARGE($A$2:$A$25,ROWS(D$2:D23)) -> 991.79 | E23: Craig
A24: 1676.98 | B24: Michael | D24: =LARGE($A$2:$A$25,ROWS(D$2:D24)) -> 737.19 | E24: Christina
A25: 2677.53 | B25: Nakyun | D25: =LARGE($A$2:$A$25,ROWS(D$2:D25)) -> 686.93 | E25: Daniel

Sheet Rank
A1: Name | B1: CPA Score | C1: Rank | G1: Name | H1: Time to Complete | I1: Rank
A2: Elain | B2: 88 | G2: Elain | H2: 1.06
A3: Carol | B3: 83 | G3: Carol | H3: 1.04
A4: Gianna | B4: 83 | G4: Gianna | H4: 1.02
A5: Jason | B5: 77 | G5: Jason | H5: 1.09
A6: Michelle | B6: 97 | G6: Michelle | H6: 1
A7: Shari | B7: 99 | G7: Shari | H7: 1.15
A8: Denise | B8: 98 | G8: Denise | H8: 1.02
A9: Daniel | B9: 92 | G9: Daniel | H9: 1.14
A10: Sarah | B10: 91 | G10: Sarah | H10: 1.15
A11: Christina | B11: 87 | G11: Christina | H11: 1.13
A12: Janita | B12: 89 | G12: Janita | H12: 1.08
A13: Debra | B13: 99 | G13: Debra | H13: 1.03
A14: Nelia | B14: 97 | G14: Nelia | H14: 1.07
A15: Manavbir | B15: 85 | G15: Manavbir | H15: 1.08
A16: Richard | B16: 87 | G16: Richard | H16: 1.03
A17: Yla-Katrina | B17: 97 | G17: Yla-Katrina | H17: 1.03
A18: Kaur | B18: 98 | G18: Kaur | H18: 1.18
A19: Mansa | B19: 92 | G19: Mansa | H19: 1.05
A20: Mitchell | B20: 96 | G20: Mitchell | H20: 1.07
A21: Craig | B21: 82 | G21: Craig | H21: 1.14
A22: Sykes | B22: 83 | G22: Sykes | H22: 1.04
A23: Ewelina | B23: 78 | G23: Ewelina | H23: 1.1
A24: Michael | B24: 86 | G24: Michael | H24: 1.03
A25: Nakyun | B25: 82 | G25: Nakyun | H25: 1.03

Sheet Rank (an) (hidden)
A1: Name | B1: CPA Score | C1: Rank | G1: Name | H1: Time to Complete | I1: Rank
A2: Elain | B2: 88 | C2: =RANK(B2,$B$2:$B$25,0) -> 13 | G2: Elain | H2: 1.06 | I2: =RANK(H2,$H$2:$H$25,1) -> 12
A3: Carol | B3: 83 | C3: =RANK(B3,$B$2:$B$25,0) -> 18 | G3: Carol | H3: 1.04 | I3: 9
A4: Gianna | B4: 83 | C4: 18 | G4: Gianna | H4: 1.02 | I4: 2
A5: Jason | B5: 77 | C5: 24 | G5: Jason | H5: 1.09 | I5: 17
A6: Michelle | B6: 97 | C6: 5 | G6: Michelle | H6: 1 | I6: 1
A7: Shari | B7: 99 | C7: 1 | G7: Shari | H7: 1.15 | I7: 22
A8: Denise | B8: 98 | C8: 3 | G8: Denise | H8: 1.02 | I8: 2
A9: Daniel | B9: 92 | C9: 9 | G9: Daniel | H9: 1.14 | I9: 20
A10: Sarah | B10: 91 | C10: 11 | G10: Sarah | H10: 1.15 | I10: 22
A11: Christina | B11: 87 | C11: 14 | G11: Christina | H11: 1.13 | I11: 19
A12: Janita | B12: 89 | C12: 12 | G12: Janita | H12: 1.08 | I12: 15
A13: Debra | B13: 99 | C13: 1 | G13: Debra | H13: 1.03 | I13: 4
A14: Nelia | B14: 97 | C14: 5 | G14: Nelia | H14: 1.07 | I14: 13
A15: Manavbir | B15: 85 | C15: 17 | G15: Manavbir | H15: 1.08 | I15: 15
A16: Richard | B16: 87 | C16: 14 | G16: Richard | H16: 1.03 | I16: 4
A17: Yla-Katrina | B17: 97 | C17: 5 | G17: Yla-Katrina | H17: 1.03 | I17: 4
A18: Kaur | B18: 98 | C18: 3 | G18: Kaur | H18: 1.18 | I18: 24
A19: Mansa | B19: 92 | C19: 9 | G19: Mansa | H19: 1.05 | I19: 11
A20: Mitchell | B20: 96 | C20: 8 | G20: Mitchell | H20: 1.07 | I20: 13
A21: Craig | B21: 82 | C21: 21 | G21: Craig | H21: 1.14 | I21: 20
A22: Sykes | B22: 83 | C22: 18 | G22: Sykes | H22: 1.04 | I22: 9
A23: Ewelina | B23: 78 | C23: 23 | G23: Ewelina | H23: 1.1 | I23: 18
A24: Michael | B24: 86 | C24: 16 | G24: Michael | H24: 1.03 | I24: 4
A25: Nakyun | B25: 82 | C25: 21 | G25: Nakyun | H25: 1.03 | I25: 4

Sheet AVERAGEIF
A1: Sales Rep | B1: Units | C1: Sales | D1: COGS
A2: Richard | B2: 59 | C2: 5937 | D2: 4215.27 | F2: Sales Rep | G2: Units | H2: Sales | I2: COGS | J2: GP %
A3: Manavbir | B3: 195 | C3: 19551 | D3: 16227.33 | F3: Richard
A4: Janita | B4: 220 | C4: 22010 | D4: 17167.8 | F4: Manavbir
A5: Mitchell | B5: 261 | C5: 26146 | D5: 21178.26 | F5: Janita
A6: Christina | B6: 166 | C6: 16621 | D6: 14626.48 | F6: Mitchell
A7: Nakyun | B7: 376 | C7: 37653 | D7: 26357.1 | F7: Christina
A8: Mitchell | B8: 160 | C8: 16018 | D8: 12013.5 | F8: Nakyun
A9: Daniel | B9: 318 | C9: 31850 | D9: 25161.5 | F9: Daniel
A10: Mi | B10: 295 | C10: 29517 | D10: 23318.43 | F10: Mi
A11: Richard | B11: 474 | C11: 47477 | D11: 36557.29 | F11: Kaur
A12: Kaur | B12: 90 | C12: 9008 | D12: 7656.8 | F12: Ewelina
A13: Ewelina | B13: 135 | C13: 13547 | D13: 9347.43 | F13: Nelia
A14: Ewelina | B14: 491 | C14: 49100 | D14: 43699 | F14: Craig
A15: Mitchell | B15: 263 | C15: 26324 | D15: 17373.84 | F15: Carol
A16: Nelia | B16: 386 | C16: 38612 | D16: 32047.96 | F16: Denise
A17: Craig | B17: 409 | C17: 40900 | D17: 29448 | F17: Sarah
A18: Carol | B18: 267 | C18: 26761 | D18: 21944.02 | F18: Shari
A19: Nelia | B19: 215 | C19: 21598 | D19: 17278.4 | F19: Yla-Katrina
A20: Denise | B20: 66 | C20: 6625 | D20: 4770 | F20: Michelle
A21: Richard | B21: 377 | C21: 37758 | D21: 31339.14 | F21: Michael
A22: Nelia | B22: 454 | C22: 45437 | D22: 35895.23 | F22: Elain
A23: Nelia | B23: 181 | C23: 18107 | D23: 15934.16 | F23: Gianna
A24: Richard | B24: 392 | C24: 39241 | D24: 26683.88 | F24: Jason
A25: Sarah | B25: 75 | C25: 7544 | D25: 5280.8 | F25: Debra
A26: Nakyun | B26: 380 | C26: 38052 | D26: 30441.6 | F26: Sykes
A27: Janita | B27: 272 | C27: 27275 | D27: 19365.25 | F27: Mansa
A28: Kaur | B28: 325 | C28: 32573 | D28: 25406.94
A29: Shari | B29: 323 | C29: 32327 | D29: 28771.03
A30: Shari | B30: 152 | C30: 15245 | D30: 12653.35
A31: Yla-Katrina | B31: 386 | C31: 38620 | D31: 29737.4
A32: Denise | B32: 264 | C32: 26444 | D32: 21419.64
A33: Richard | B33: 401 | C33: 40199 | D33: 34973.13
A34: Carol | B34: 360 | C34: 36011 | D34: 25207.7
A35: Michelle | B35: 454 | C35: 45422 | D35: 34974.94
A36: Nakyun | B36: 402 | C36: 40283 | D36: 28198.1
A37: Ewelina | B37: 378 | C37: 37862 | D37: 25367.54
A38: Janita | B38: 478 | C38: 47855 | D38: 34455.6
A39: Nelia | B39: 293 | C39: 29383 | D39: 24094.06
A40: Mi | B40: 363 | C40: 36334 | D40: 29793.88
A41: Nakyun | B41: 403 | C41: 40325 | D41: 27017.75
A42: Manavbir | B42: 72 | C42: 7257 | D42: 5007.33
A43: Janita | B43: 64 | C43: 6429 | D43: 5078.91
A44: Manavbir | B44: 326 | C44: 32666 | D44: 22212.88
A45: Shari | B45: 145 | C45: 14516 | D45: 9435.4
A46: Manavbir | B46: 177 | C46: 17731 | D46: 14007.49
A47: Mi | B47: 407 | C47: 40705 | D47: 28900.55
A48: Craig | B48: 79 | C48: 7940 | D48: 7146
A49: Nelia | B49: 160 | C49: 16064 | D49: 11084.16
A50: Shari | B50: 341 | C50: 34144 | D50: 30729.6
A51: Michael | B51: 327 | C51: 32784 | D51: 29505.6
A52: Elain | B52: 99 | C52: 9958 | D52: 7468.5
A53: Nelia | B53: 480 | C53: 48074 | D53: 32690.32
A54: Gianna | B54: 361 | C54: 36132 | D54: 24931.08
A55: Denise | B55: 112 | C55: 11251 | D55: 8663.27
A56: Denise | B56: 479 | C56: 47943 | D56: 40272.12
A57: Jason | B57: 441 | C57: 44129 | D57: 30007.72
A58: Craig | B58: 77 | C58: 7793 | D58: 5299.24
A59: Richard | B59: 147 | C59: 14712 | D59: 9709.92
A60: Craig | B60: 451 | C60: 45146 | D60: 30699.28
A61: Debra | B61: 219 | C61: 21954 | D61: 15148.26
A62: Ewelina | B62: 333 | C62: 33319 | D62: 21990.54
A63: Manavbir | B63: 76 | C63: 7638 | D63: 5881.26
A64: Richard | B64: 156 | C64: 15678 | D64: 10661.04
A65: Sarah | B65: 71 | C65: 7138 | D65: 5710.4
A66: Gianna | B66: 408 | C66: 40848 | D66: 28593.6
A67: Nelia | B67: 327 | C67: 32714 | D67: 24535.5
A68: Sarah | B68: 468 | C68: 46889 | D68: 37980.09
A69: Manavbir | B69: 256 | C69: 25614 | D69: 18698.22
A70: Kaur | B70: 52 | C70: 5294 | D70: 3917.56
A71: Elain | B71: 194 | C71: 19448 | D71: 16141.84
A72: Gianna | B72: 72 | C72: 7232 | D72: 5134.72
A73: Debra | B73: 491 | C73: 49129 | D73: 41268.36
A74: Jason | B74: 107 | C74: 10720 | D74: 9112
A75: Shari | B75: 88 | C75: 8892 | D75: 8002.8
A76: Nelia | B76: 150 | C76: 15063 | D76: 10995.99
A77: Sarah | B77: 443 | C77: 44344 | D77: 38579.28
A78: Jason | B78: 486 | C78: 48600 | D78: 43254
A79: Mitchell | B79: 282 | C79: 28247 | D79: 25422.3
A80: Gianna | B80: 444 | C80: 44470 | D80: 36020.7
A81: Jason | B81: 98 | C81: 9839 | D81: 6887.3
A82: Michael | B82: 95 | C82: 9584 | D82: 6900.48
A83: Sarah | B83: 122 | C83: 12220 | D83: 10020.4
A84: Richard | B84: 155 | C84: 15578 | D84: 12773.96
A85: Sarah | B85: 454 | C85: 45413 | D85: 34968.01
A86: Gianna | B86: 319 | C86: 31959 | D86: 22051.71
A87: Mi | B87: 231 | C87: 23107 | D87: 15943.83
A88: Sarah | B88: 283 | C88: 28368 | D88: 22694.4
A89: Michael | B89: 364 | C89: 36489 | D89: 30285.87
A90: Yla-Katrina | B90: 56 | C90: 5612 | D90: 3872.28
A91: Christina | B91: 369 | C91: 36978 | D91: 28473.06
A92: Craig | B92: 244 | C92: 24439 | D92: 18329.25
A93: Mitchell | B93: 267 | C93: 26715 | D93: 21906.3
A94: Mi | B94: 238 | C94: 23882 | D94: 19822.06
A95: Craig | B95: 214 | C95: 21426 | D95: 18212.1
A96: Mitchell | B96: 383 | C96: 38312 | D96: 29883.36
A97: Mi | B97: 235 | C97: 23551 | D97: 17192.23
A98: Nakyun | B98: 288 | C98: 28866 | D98: 21360.84
A99: Nelia | B99: 88 | C99: 8812 | D99: 7754.56
A100: Sarah | B100: 619 | C100: 61911 | D100: 45195.03
A101: Manavbir | B101: 169 | C101: 16958 | D101: 13057.66
A102: Mi | B102: 179 | C102: 17952 | D102: 15977.28
A103: Elain | B103: 332 | C103: 33291 | D103: 27298.62
A104: Mi | B104: 68 | C104: 6800 | D104: 5576
A105: Carol | B105: 249 | C105: 24953 | D105: 17716.63
A106: Nakyun | B106: 316 | C106: 31603 | D106: 20857.98
A107: Michael | B107: 309 | C107: 30943 | D107: 20731.81
A108: Kaur | B108: 382 | C108: 38208 | D108: 32476.8
A109: Mitchell | B109: 351 | C109: 35127 | D109: 31263.03
A110: Sykes | B110: 435 | C110: 43569 | D110: 39212.1
A111: Carol | B111: 416 | C111: 41682 | D111: 32928.78
A112: Mansa | B112: 428 | C112: 42821 | D112: 35969.64
A113: Richard | B113: 207 | C113: 20726 | D113: 14508.2
A114: Sykes | B114: 259 | C114: 25969 | D114: 21294.58
A115: Christina | B115: 461 | C115: 46134 | D115: 40597.92
A116: Jason | B116: 438 | C116: 43807 | D116: 28474.55
A117: Sarah | B117: 485 | C117: 48593 | D117: 32071.38
A118: Mitchell | B118: 437 | C118: 43707 | D118: 35839.74
A119: Mitchell | B119: 454 | C119: 45405 | D119: 30421.35
A120: Debra | B120: 78 | C120: 7850 | D120: 6829.5
A121: Manavbir | B121: 360 | C121: 36076 | D121: 29221.56
A122: Nakyun | B122: 201 | C122: 20109 | D122: 17293.74
A123: Michelle | B123: 327 | C123: 32743 | D123: 22265.24
A124: Denise | B124: 195 | C124: 19508 | D124: 14435.92
A125: Mitchell | B125: 160 | C125: 16002 | D125: 13441.68
A126: Nelia | B126: 164 | C126: 16402 | D126: 13285.62
A127: Mitchell | B127: 124 | C127: 12451 | D127: 10707.86
A128: Michelle | B128: 466 | C128: 46644 | D128: 37315.2
A129: Carol | B129: 442 | C129: 44253 | D129: 35844.93
A130: Christina | B130: 494 | C130: 49494 | D130: 36130.62
A131: Nakyun | B131: 473 | C131: 47340 | D131: 41659.2
A132: Carol | B132: 66 | C132: 6681 | D132: 5879.28
A133: Nelia | B133: 409 | C133: 40975 | D133: 29092.25
A134: Michelle | B134: 491 | C134: 49190 | D134: 42795.3
A135: Mansa | B135: 329 | C135: 32908 | D135: 28300.88
A136: Nelia | B136: 78 | C136: 7894 | D136: 6552.02
A137: Yla-Katrina | B137: 312 | C137: 31206 | D137: 23404.5
A138: Mi | B138: 452 | C138: 45239 | D138: 33929.25
A139: Jason | B139: 322 | C139: 32214 | D139: 28348.32
A140: Richard | B140: 140 | C140: 14015 | D140: 10230.95
A141: Daniel | B141: 347 | C141: 34706 | D141: 25335.38
A142: Janita | B142: 456 | C142: 45676 | D142: 39281.36
A143: Ewelina | B143: 74 | C143: 7488 | D143: 6514.56
A144: Denise | B144: 304 | C144: 30415 | D144: 25852.75
A145: Janita | B145: 197 | C145: 19724 | D145: 13806.8
A146: Christina | B146: 52 | C146: 5252 | D146: 3518.84
A147: Sykes | B147: 392 | C147: 39222 | D147: 29024.28
A148: Gianna | B148: 114 | C148: 11449 | D148: 9960.63
A149: Ewelina | B149: 398 | C149: 39876 | D149: 28710.72
A150: Michelle | B150: 417 | C150: 41728 | D150: 32965.12
A151: Kaur | B151: 487 | C151: 48797 | D151: 36109.78
A152: Gianna | B152: 395 | C152: 39504 | D152: 33183.36
A153: Michael | B153: 143 | C153: 14342 | D153: 12477.54
A154: Jason | B154: 302 | C154: 30224 | D154: 26899.36
A155: Craig | B155: 382 | C155: 38293 | D155: 32166.12
A156: Richard | B156: 433 | C156: 43317 | D156: 36386.28
A157: Denise | B157: 341 | C157: 34112 | D157: 23196.16
A158: Michael | B158: 480 | C158: 48024 | D158: 39859.92
A159: Kaur | B159: 478 | C159: 47831 | D159: 33003.39
A160: Michael | B160: 446 | C160: 44663 | D160: 39303.44
A161: Jason | B161: 367 | C161: 36798 | D161: 26126.58
A162: Yla-Katrina | B162: 213 | C162: 21365 | D162: 14955.5
A163: Nakyun | B163: 459 | C163: 45944 | D163: 33539.12
A164: Mitchell | B164: 335 | C164: 33527 | D164: 27156.87
A165: Sykes | B165: 480 | C165: 48077 | D165: 39423.14
A166: Mi | B166: 169 | C166: 16983 | D166: 12737.25
A167: Michelle | B167: 62 | C167: 6251 | D167: 4375.7
A168: Kaur | B168: 209 | C168: 20968 | D168: 14048.56
A169: Mitchell | B169: 97 | C169: 9759 | D169: 6343.35
A170: Shari | B170: 118 | C170: 11835 | D170: 8166.15
A171: Mansa | B171: 141 | C171: 14181 | D171: 12337.47
A172: Carol | B172: 101 | C172: 10117 | D172: 6778.39
A173: Ewelina | B173: 484 | C173: 48418 | D173: 31471.7
A174: Carol | B174: 362 | C174: 36245 | D174: 27183.75
A175: Denise | B175: 313 | C175: 31306 | D175: 21914.2
A176: Daniel | B176: 72 | C176: 7240 | D176: 4706
A177: Yla-Katrina | B177: 148 | C177: 14883 | D177: 11311.08
A178: Carol | B178: 138 | C178: 13871 | D178: 10680.67
A179: Mi | B179: 267 | C179: 26792 | D179: 22505.28
A180: Sarah | B180: 131 | C180: 13150 | D180: 9205
A181: Ewelina | B181: 478 | C181: 47850 | D181: 31102.5
A182: Denise | B182: 405 | C182: 40529 | D182: 34044.36
A183: Debra | B183: 350 | C183: 35013 | D183: 31511.7
A184: Janita | B184: 164 | C184: 16459 | D184: 12838.02
A185: Nakyun | B185: 108 | C185: 10897 | D185: 7083.05
A186: Craig | B186: 243 | C186: 24361 | D186: 16565.48
A187: Kaur | B187: 447 | C187: 44746 | D187: 36244.26
A188: Jason | B188: 207 | C188: 20768 | D188: 14329.92
A189: Michelle | B189: 225 | C189: 22517 | D189: 16662.58
A190: Yla-Katrina | B190: 113 | C190: 11307 | D190: 8254.11
A191: Craig | B191: 140 | C191: 14094 | D191: 9302.04
A192: Yla-Katrina | B192: 391 | C192: 39123 | D192: 32863.32
A193: Kaur | B193: 280 | C193: 28032 | D193: 18220.8
A194: Carol | B194: 102 | C194: 10296 | D194: 7927.92
A195: Daniel | B195: 429 | C195: 42922 | D195: 30045.4
A196: Elain | B196: 379 | C196: 37938 | D196: 25418.46
A197: Richard | B197: 108 | C197: 10818 | D197: 7356.24
A198: Mi | B198: 110 | C198: 11023 | D198: 8046.79
A199: Yla-Katrina | B199: 239 | C199: 23907 | D199: 16973.97
A200: Mi | B200: 843 | C200: 84341 | D200: 55665.06
... 990 more rows

Sheet AVERAGEIF (an) (hidden)
A1: Sales Rep | B1: Units | C1: Sales | D1: COGS
A2: Richard | B2: 59 | C2: 5937 | D2: 4215.27 | F2: Sales Rep | G2: Units | H2: Sales | I2: COGS | J2: GP %
A3: Manavbir | B3: 195 | C3: 19551 | D3: 16227.33 | F3: Carol | G3: =AVERAGEIF($A$2:$A$1190,$F3,B$2:B$1190) -> 258.2765957 | H3: =AVERAGEIF($A$2:$A$1190,$F3,C$2:C$1190) -> 25877.04255 | I3: =AVERAGEIF($A$2:$A$1190,$F3,D$2:D$1190) -> 19892.52468 | J3: =H3/I3-1 -> 0.3008425511 | X3: Row Labels | Y3: Average of Units | Z3: Average of Sales | AA3: Average of COGS
A4: Janita | B4: 220 | C4: 22010 | D4: 17167.8 | F4: Christina | G4: 285.0454545 | H4: 28560.43182 | I4: 21668.04909 | J4: 0.3180896766 | X4: Carol | Y4: 258.2765957 | Z4: 25877.04255 | AA4: 19892.52468
A5: Mitchell | B5: 261 | C5: 26146 | D5: 21178.26 | F5: Craig | G5: 275.54 | H5: 27600.36 | I5: 21618.7056 | J5: 0.2766888319 | X5: Christina | Y5: 285.0454545 | Z5: 28560.43182 | AA5: 21668.04909
A6: Christina | B6: 166 | C6: 16621 | D6: 14626.48 | F6: Daniel | G6: 304.1555556 | H6: 30466.75556 | I6: 23964.18533 | J6: 0.2713453486 | X6: Craig | Y6: 275.54 | Z6: 27600.36 | AA6: 21618.7056
A7: Nakyun | B7: 376 | C7: 37653 | D7: 26357.1 | F7: Debra | G7: 255.9183673 | H7: 25638.42857 | I7: 19780.08735 | J7: 0.2961736782 | X7: Daniel | Y7: 304.1555556 | Z7: 30466.75556 | AA7: 23964.18533
A8: Mitchell | B8: 160 | C8: 16018 | D8: 12013.5 | F8: Denise | G8: 280.15 | H8: 28060.8 | I8: 22304.94575 | J8: 0.2580528245 | X8: Debra | Y8: 255.9183673 | Z8: 25638.42857 | AA8: 19780.08735
A9: Daniel | B9: 318 | C9: 31850 | D9: 25161.5 | F9: Elain | G9: 273.2058824 | H9: 27370.73529 | I9: 21194.77471 | J9: 0.2913907165 | X9: Denise | Y9: 280.15 | Z9: 28060.8 | AA9: 22304.94575
A10: Mi | B10: 295 | C10: 29517 | D10: 23318.43 | F10: Ewelina | G10: 282.452381 | H10: 28290.92857 | I10: 20885.99381 | J10: 0.354540695 | X10: Elain | Y10: 273.2058824 | Z10: 27370.73529 | AA10: 21194.77471
A11: Richard | B11: 474 | C11: 47477 | D11: 36557.29 | F11: Gianna | G11: 253.8409091 | H11: 25430.97727 | I11: 19419.81045 | J11: 0.3095378728 | X11: Ewelina | Y11: 282.452381 | Z11: 28290.92857 | AA11: 20885.99381
A12: Kaur | B12: 90 | C12: 9008 | D12: 7656.8 | F12: Janita | G12: 271.0810811 | H12: 27156.13514 | I12: 20953.29081 | J12: 0.2960319875 | X12: Gianna | Y12: 253.8409091 | Z12: 25430.97727 | AA12: 19419.81045
A13: Ewelina | B13: 135 | C13: 13547 | D13: 9347.43 | F13: Jason | G13: 309.0227273 | H13: 30942.45455 | I13: 24487.05659 | J13: 0.2636249045 | X13: Janita | Y13: 271.0810811 | Z13: 27156.13514 | AA13: 20953.29081
A14: Ewelina | B14: 491 | C14: 49100 | D14: 43699 | F14: Kaur | G14: 269.1960784 | H14: 26969.56863 | I14: 20541.2851 | J14: 0.312944565 | X14: Jason | Y14: 309.0227273 | Z14: 30942.45455 | AA14: 24487.05659
A15: Mitchell | B15: 263 | C15: 26324 | D15: 17373.84 | F15: Manavbir | G15: 260.8085106 | H15: 26131.55319 | I15: 20331.01745 | J15: 0.2853047448 | X15: Kaur | Y15: 269.1960784 | Z15: 26969.56863 | AA15: 20541.2851
A16: Nelia | B16: 386 | C16: 38612 | D16: 32047.96 | F16: Mansa | G16: 279.5333333 | H16: 28004.57778 | I16: 22554.02444 | J16: 0.2416665525 | X16: Manavbir | Y16: 260.8085106 | Z16: 26131.55319 | AA16: 20331.01745
A17: Craig | B17: 409 | C17: 40900 | D17: 29448 | F17: Mi | G17: 250.7678571 | H17: 25124.80357 | I17: 19765.71661 | J17: 0.2711304159 | X17: Mansa | Y17: 279.5333333 | Z17: 28004.57778 | AA17: 22554.02444
A18: Carol | B18: 267 | C18: 26761 | D18: 21944.02 | F18: Michael | G18: 290.7826087 | H18: 29128.6087 | I18: 22621.03283 | J18: 0.2876781056 | X18: Mi | Y18: 250.7678571 | Z18: 25124.80357 | AA18: 19765.71661
A19: Nelia | B19: 215 | C19: 21598 | D19: 17278.4 | F19: Michelle | G19: 313.7826087 | H19: 31428.6087 | I19: 24007.96739 | J19: 0.3090907774 | X19: Michael | Y19: 290.7826087 | Z19: 29128.6087 | AA19: 22621.03283
A20: Denise | B20: 66 | C20: 6625 | D20: 4770 | F20: Mitchell | G20: 311.0181818 | H20: 31141.76364 | I20: 23805.12855 | J20: 0.3081955671 | X20: Michelle | Y20: 313.7826087 | Z20: 31428.6087 | AA20: 24007.96739
A21: Richard | B21: 377 | C21: 37758 | D21: 31339.14 | F21: Nakyun | G21: 293.1538462 | H21: 29366.67308 | I21: 22675.89712 | J21: 0.2950611359 | X21: Mitchell | Y21: 311.0181818 | Z21: 31141.76364 | AA21: 23805.12855
A22: Nelia | B22: 454 | C22: 45437 | D22: 35895.23 | F22: Nelia | G22: 253.5384615 | H22: 25397.76923 | I22: 19897.51442 | J22: 0.2764292409 | X22: Nakyun | Y22: 293.1538462 | Z22: 29366.67308 | AA22: 22675.89712
A23: Nelia | B23: 181 | C23: 18107 | D23: 15934.16 | F23: Richard | G23: 259.5098039 | H23: 26003.33333 | I23: 20303.61294 | J23: 0.2807244409 | X23: Nelia | Y23: 253.5384615 | Z23: 25397.76923 | AA23: 19897.51442
A24: Richard | B24: 392 | C24: 39241 | D24: 26683.88 | F24: Sarah | G24: 305.4666667 | H24: 30597.7 | I24: 23649.82233 | J24: 0.2937813895 | X24: Richard | Y24: 259.5098039 | Z24: 26003.33333 | AA24: 20303.61294
A25: Sarah | B25: 75 | C25: 7544 | D25: 5280.8 | F25: Shari | G25: 252.3829787 | H25: 25290.53191 | I25: 19454.69936 | J25: 0.2999703282 | X25: Sarah | Y25: 305.4666667 | Z25: 30597.7 | AA25: 23649.82233
A26: Nakyun | B26: 380 | C26: 38052 | D26: 30441.6 | F26: Sykes | G26: 274.7777778 | H26: 27521.95556 | I26: 21601.47911 | J26: 0.2740773636 | X26: Shari | Y26: 252.3829787 | Z26: 25290.53191 | AA26: 19454.69936
A27: Janita | B27: 272 | C27: 27275 | D27: 19365.25 | F27: Yla-Katrina | G27: 252.6333333 | H27: 25309.25 | I27: 19851.25433 | J27: 0.2749446244 | X27: Sykes | Y27: 274.7777778 | Z27: 27521.95556 | AA27: 21601.47911
A28: Kaur | B28: 325 | C28: 32573 | D28: 25406.94 | X28: Yla-Katrina | Y28: 252.6333333 | Z28: 25309.25 | AA28: 19851.25433
A29: Shari | B29: 323 | C29: 32327 | D29: 28771.03 | X29: Grand Total | Y29: 276.4844407 | Z29: 27696.70732 | AA29: 21479.4709
A30: Shari | B30: 152 | C30: 15245 | D30: 12653.35
A31: Yla-Katrina | B31: 386 | C31: 38620 | D31: 29737.4
A32: Denise | B32: 264 | C32: 26444 | D32: 21419.64
A33: Richard | B33: 401 | C33: 40199 | D33: 34973.13
A34: Carol | B34: 360 | C34: 36011 | D34: 25207.7
A35: Michelle | B35: 454 | C35: 45422 | D35: 34974.94
A36: Nakyun | B36: 402 | C36: 40283 | D36: 28198.1
A37: Ewelina | B37: 378 | C37: 37862 | D37: 25367.54
A38: Janita | B38: 478 | C38: 47855 | D38: 34455.6
A39: Nelia | B39: 293 | C39: 29383 | D39: 24094.06
A40: Mi | B40: 363 | C40: 36334 | D40: 29793.88
A41: Nakyun | B41: 403 | C41: 40325 | D41: 27017.75
A42: Manavbir | B42: 72 | C42: 7257 | D42: 5007.33
A43: Janita | B43: 64 | C43: 6429 | D43: 5078.91
A44: Manavbir | B44: 326 | C44: 32666 | D44: 22212.88
A45: Shari | B45: 145 | C45: 14516 | D45: 9435.4
A46: Manavbir | B46: 177 | C46: 17731 | D46: 14007.49
A47: Mi | B47: 407 | C47: 40705 | D47: 28900.55
A48: Craig | B48: 79 | C48: 7940 | D48: 7146
A49: Nelia | B49: 160 | C49: 16064 | D49: 11084.16
A50: Shari | B50: 341 | C50: 34144 | D50: 30729.6
A51: Michael | B51: 327 | C51: 32784 | D51: 29505.6
A52: Elain | B52: 99 | C52: 9958 | D52: 7468.5
A53: Nelia | B53: 480 | C53: 48074 | D53: 32690.32
A54: Gianna | B54: 361 | C54: 36132 | D54: 24931.08
A55: Denise | B55: 112 | C55: 11251 | D55: 8663.27
A56: Denise | B56: 479 | C56: 47943 | D56: 40272.12
A57: Jason | B57: 441 | C57: 44129 | D57: 30007.72
A58: Craig | B58: 77 | C58: 7793 | D58: 5299.24
A59: Richard | B59: 147 | C59: 14712 | D59: 9709.92
A60: Craig | B60: 451 | C60: 45146 | D60: 30699.28
A61: Debra | B61: 219 | C61: 21954 | D61: 15148.26
A62: Ewelina | B62: 333 | C62: 33319 | D62: 21990.54
A63: Manavbir | B63: 76 | C63: 7638 | D63: 5881.26
A64: Richard | B64: 156 | C64: 15678 | D64: 10661.04
A65: Sarah | B65: 71 | C65: 7138 | D65: 5710.4
A66: Gianna | B66: 408 | C66: 40848 | D66: 28593.6
A67: Nelia | B67: 327 | C67: 32714 | D67: 24535.5
A68: Sarah | B68: 468 | C68: 46889 | D68: 37980.09
A69: Manavbir | B69: 256 | C69: 25614 | D69: 18698.22
A70: Kaur | B70: 52 | C70: 5294 | D70: 3917.56
A71: Elain | B71: 194 | C71: 19448 | D71: 16141.84
A72: Gianna | B72: 72 | C72: 7232 | D72: 5134.72
A73: Debra | B73: 491 | C73: 49129 | D73: 41268.36
A74: Jason | B74: 107 | C74: 10720 | D74: 9112
A75: Shari | B75: 88 | C75: 8892 | D75: 8002.8
A76: Nelia | B76: 150 | C76: 15063 | D76: 10995.99
A77: Sarah | B77: 443 | C77: 44344 | D77: 38579.28
A78: Jason | B78: 486 | C78: 48600 | D78: 43254
A79: Mitchell | B79: 282 | C79: 28247 | D79: 25422.3
A80: Gianna | B80: 444 | C80: 44470 | D80: 36020.7
A81: Jason | B81: 98 | C81: 9839 | D81: 6887.3
A82: Michael | B82: 95 | C82: 9584 | D82: 6900.48
A83: Sarah | B83: 122 | C83: 12220 | D83: 10020.4
A84: Richard | B84: 155 | C84: 15578 | D84: 12773.96
A85: Sarah | B85: 454 | C85: 45413 | D85: 34968.01
A86: Gianna | B86: 319 | C86: 31959 | D86: 22051.71
A87: Mi | B87: 231 | C87: 23107 | D87: 15943.83
A88: Sarah | B88: 283 | C88: 28368 | D88: 22694.4
A89: Michael | B89: 364 | C89: 36489 | D89: 30285.87
A90: Yla-Katrina | B90: 56 | C90: 5612 | D90: 3872.28
A91: Christina | B91: 369 | C91: 36978 | D91: 28473.06
A92: Craig | B92: 244 | C92: 24439 | D92: 18329.25
A93: Mitchell | B93: 267 | C93: 26715 | D93: 21906.3
A94: Mi | B94: 238 | C94: 23882 | D94: 19822.06
A95: Craig | B95: 214 | C95: 21426 | D95: 18212.1
A96: Mitchell | B96: 383 | C96: 38312 | D96: 29883.36
A97: Mi | B97: 235 | C97: 23551 | D97: 17192.23
A98: Nakyun | B98: 288 | C98: 28866 | D98: 21360.84
A99: Nelia | B99: 88 | C99: 8812 | D99: 7754.56
A100: Sarah | B100: 619 | C100: 61911 | D100: 45195.03
A101: Manavbir | B101: 169 | C101: 16958 | D101: 13057.66
A102: Mi | B102: 179 | C102: 17952 | D102: 15977.28
A103: Elain | B103: 332 | C103: 33291 | D103: 27298.62
A104: Mi | B104: 68 | C104: 6800 | D104: 5576
A105: Carol | B105: 249 | C105: 24953 | D105: 17716.63
A106: Nakyun | B106: 316 | C106: 31603 | D106: 20857.98
A107: Michael | B107: 309 | C107: 30943 | D107: 20731.81
A108: Kaur | B108: 382 | C108: 38208 | D108: 32476.8
A109: Mitchell | B109: 351 | C109: 35127 | D109: 31263.03
A110: Sykes | B110: 435 | C110: 43569 | D110: 39212.1
A111: Carol | B111: 416 | C111: 41682 | D111: 32928.78
A112: Mansa | B112: 428 | C112: 42821 | D112: 35969.64
A113: Richard | B113: 207 | C113: 20726 | D113: 14508.2
A114: Sykes | B114: 259 | C114: 25969 | D114: 21294.58
A115: Christina | B115: 461 | C115: 46134 | D115: 40597.92
A116: Jason | B116: 438 | C116: 43807 | D116: 28474.55
A117: Sarah | B117: 485 | C117: 48593 | D117: 32071.38
A118: Mitchell | B118: 437 | C118: 43707 | D118: 35839.74
A119: Mitchell | B119: 454 | C119: 45405 | D119: 30421.35
A120: Debra | B120: 78 | C120: 7850 | D120: 6829.5
A121: Manavbir | B121: 360 | C121: 36076 | D121: 29221.56
A122: Nakyun | B122: 201 | C122: 20109 | D122: 17293.74
A123: Michelle | B123: 327 | C123: 32743 | D123: 22265.24
A124: Denise | B124: 195 | C124: 19508 | D124: 14435.92
A125: Mitchell | B125: 160 | C125: 16002 | D125: 13441.68
A126: Nelia | B126: 164 | C126: 16402 | D126: 13285.62
A127: Mitchell | B127: 124 | C127: 12451 | D127: 10707.86
A128: Michelle | B128: 466 | C128: 46644 | D128: 37315.2
A129: Carol | B129: 442 | C129: 44253 | D129: 35844.93
A130: Christina | B130: 494 | C130: 49494 | D130: 36130.62
A131: Nakyun | B131: 473 | C131: 47340 | D131: 41659.2
A132: Carol | B132: 66 | C132: 6681 | D132: 5879.28
A133: Nelia | B133: 409 | C133: 40975 | D133: 29092.25
A134: Michelle | B134: 491 | C134: 49190 | D134: 42795.3
A135: Mansa | B135: 329 | C135: 32908 | D135: 28300.88
A136: Nelia | B136: 78 | C136: 7894 | D136: 6552.02
A137: Yla-Katrina | B137: 312 | C137: 31206 | D137: 23404.5
A138: Mi | B138: 452 | C138: 45239 | D138: 33929.25
A139: Jason | B139: 322 | C139: 32214 | D139: 28348.32
A140: Richard | B140: 140 | C140: 14015 | D140: 10230.95
A141: Daniel | B141: 347 | C141: 34706 | D141: 25335.38
A142: Janita | B142: 456 | C142: 45676 | D142: 39281.36
A143: Ewelina | B143: 74 | C143: 7488 | D143: 6514.56
A144: Denise | B144: 304 | C144: 30415 | D144: 25852.75
A145: Janita | B145: 197 | C145: 19724 | D145: 13806.8
A146: Christina | B146: 52 | C146: 5252 | D146: 3518.84
A147: Sykes | B147: 392 | C147: 39222 | D147: 29024.28
A148: Gianna | B148: 114 | C148: 11449 | D148: 9960.63
A149: Ewelina | B149: 398 | C149: 39876 | D149: 28710.72
A150: Michelle | B150: 417 | C150: 41728 | D150: 32965.12
A151: Kaur | B151: 487 | C151: 48797 | D151: 36109.78
A152: Gianna | B152: 395 | C152: 39504 | D152: 33183.36
A153: Michael | B153: 143 | C153: 14342 | D153: 12477.54
A154: Jason | B154: 302 | C154: 30224 | D154: 26899.36
A155: Craig | B155: 382 | C155: 38293 | D155: 32166.12
A156: Richard | B156: 433 | C156: 43317 | D156: 36386.28
A157: Denise | B157: 341 | C157: 34112 | D157: 23196.16
A158: Michael | B158: 480 | C158: 48024 | D158: 39859.92
A159: Kaur | B159: 478 | C159: 47831 | D159: 33003.39
A160: Michael | B160: 446 | C160: 44663 | D160: 39303.44
A161: Jason | B161: 367 | C161: 36798 | D161: 26126.58
A162: Yla-Katrina | B162: 213 | C162: 21365 | D162: 14955.5
A163: Nakyun | B163: 459 | C163: 45944 | D163: 33539.12
A164: Mitchell | B164: 335 | C164: 33527 | D164: 27156.87
A165: Sykes | B165: 480 | C165: 48077 | D165: 39423.14
A166: Mi | B166: 169 | C166: 16983 | D166: 12737.25
A167: Michelle | B167: 62 | C167: 6251 | D167: 4375.7
A168: Kaur | B168: 209 | C168: 20968 | D168: 14048.56
A169: Mitchell | B169: 97 | C169: 9759 | D169: 6343.35
A170: Shari | B170: 118 | C170: 11835 | D170: 8166.15
A171: Mansa | B171: 141 | C171: 14181 | D171: 12337.47
A172: Carol | B172: 101 | C172: 10117 | D172: 6778.39
A173: Ewelina | B173: 484 | C173: 48418 | D173: 31471.7
A174: Carol | B174: 362 | C174: 36245 | D174: 27183.75
A175: Denise | B175: 313 | C175: 31306 | D175: 21914.2
A176: Daniel | B176: 72 | C176: 7240 | D176: 4706
A177: Yla-Katrina | B177: 148 | C177: 14883 | D177: 11311.08
A178: Carol | B178: 138 | C178: 13871 | D178: 10680.67
A179: Mi | B179: 267 | C179: 26792 | D179: 22505.28
A180: Sarah | B180: 131 | C180: 13150 | D180: 9205
A181: Ewelina | B181: 478 | C181: 47850 | D181: 31102.5
A182: Denise | B182: 405 | C182: 40529 | D182: 34044.36
A183: Debra | B183: 350 | C183: 35013 | D183: 31511.7
A184: Janita | B184: 164 | C184: 16459 | D184: 12838.02
A185: Nakyun | B185: 108 | C185: 10897 | D185: 7083.05
A186: Craig | B186: 243 | C186: 24361 | D186: 16565.48
A187: Kaur | B187: 447 | C187: 44746 | D187: 36244.26
A188: Jason | B188: 207 | C188: 20768 | D188: 14329.92
A189: Michelle | B189: 225 | C189: 22517 | D189: 16662.58
A190: Yla-Katrina | B190: 113 | C190: 11307 | D190: 8254.11
A191: Craig | B191: 140 | C191: 14094 | D191: 9302.04
A192: Yla-Katrina | B192: 391 | C192: 39123 | D192: 32863.32
A193: Kaur | B193: 280 | C193: 28032 | D193: 18220.8
A194: Carol | B194: 102 | C194: 10296 | D194: 7927.92
A195: Daniel | B195: 429 | C195: 42922 | D195: 30045.4
A196: Elain | B196: 379 | C196: 37938 | D196: 25418.46
A197: Richard | B197: 108 | C197: 10818 | D197: 7356.24
A198: Mi | B198: 110 | C198: 11023 | D198: 8046.79
A199: Yla-Katrina | B199: 239 | C199: 23907 | D199: 16973.97
A200: Mi | B200: 843 | C200: 84341 | D200: 55665.06
... 990 more rows

Sheet Credit Analysis
A1: Rule 1 | B1: ="Account Not Suspended, No Overdue Balance and Last Year's Sales > "&DOLLAR(F6)&"" -> Account Not Suspended, No Overdue Balance and Last Year's Sales > $50,000.00
A2: Rule 2 | B2: Account Not Suspended and Both Credit Hurdles must be met and at least 1 of the remaining criteria must be met
A4: Formula Inputs
A5: Customer Name | B5: Account Suspended? | C5: Rating1 Hurdle | D5: Rating2 Hurdle | E5: Asset Value | F5: Last Year's Sales | G5: Over Due Balance
B6: Yes | C6: 2.5 | D6: 4.5 | E6: 200000 | F6: 50000 | G6: Yes
A8: Customer Credit Analysis For Accounts Receivable
A9: =A5 -> Customer Name | B9: Account Suspended? | C9: Rating1 | D9: Rating2 | E9: Asset Value | F9: Last Year's Sales | G9: Over Due Balance | H9: =A1&CHAR(10)&B1 -> Rule 1 Account Not Suspended, No Overdue Balance and Last Year's Sales > $50,000.00 | I9: =A2&CHAR(10)&B2 -> Rule 2 Account Not Suspended and Both Credit Hurdles must be met and at least 1 of the remaining criteria must be met | J9: NONE Fail Both Rules | K9: ONLY: Two rules are false, but Asset Hurdle Met | L9: Decision
A10: Cust01 | C10: 5 | D10: 7.4 | E10: 208339 | F10: 90550 | H10: =AND(B10<>B$6,G10<>G$6,F10>F$6) -> TRUE | I10: =AND(B10<>B$6,C10>=C$6,D10>=D$6,OR(E10>=E$6,F10>=F$6,G10<>G$6)) -> TRUE | J10: =NOT(OR(H10:I10)) -> FALSE | K10: =AND(NOT(OR(H10:I10)),E10>=E$6) -> FALSE
A11: Cust02 | C11: 5 | D11: 5.9 | E11: 374775 | F11: 51255 | G11: Yes | H11: =AND(B11<>B$6,G11<>G$6,F11>F$6) -> FALSE | I11: =AND(B11<>B$6,C11>=C$6,D11>=D$6,OR(E11>=E$6,F11>=F$6,G11<>G$6)) -> TRUE | J11: FALSE | K11: =AND(NOT(OR(H11:I11)),E11>=E$6) -> FALSE
A12: Cust03 | C12: 3.3 | D12: 3.9 | E12: 371040 | F12: 56241 | H12: TRUE | I12: FALSE | J12: FALSE | K12: FALSE
A13: Cust04 | B13: Yes | C13: 1.2 | D13: 2.4 | E13: 331439 | F13: 69920 | H13: FALSE | I13: FALSE | J13: TRUE | K13: TRUE
A14: Cust05 | B14: Yes | C14: 3.4 | D14: 5.3 | E14: 150000 | F14: 58534 | G14: Yes | H14: FALSE | I14: FALSE | J14: TRUE | K14: FALSE
A15: Cust06 | C15: 4.5 | D15: 6 | E15: 336794 | F15: 60423 | G15: Yes | H15: FALSE | I15: TRUE | J15: FALSE | K15: FALSE
A16: Cust07 | C16: 4.4 | D16: 2.4 | E16: 500000 | F16: 49850 | H16: FALSE | I16: FALSE | J16: TRUE | K16: TRUE
A17: Cust08 | C17: 2.9 | D17: 5.5 | E17: 375800 | F17: 62100 | H17: TRUE | I17: TRUE | J17: FALSE | K17: FALSE
A18: Cust09 | C18: 2.5 | D18: 8.9 | E18: 254888 | F18: 75000 | H18: TRUE | I18: TRUE | J18: FALSE | K18: FALSE
